{"text_format":"1","workbook":"xlsx","n_sheets":6,"sheets":["Умная Т","Все МО","10 лучших","10 худших","Помесячно по МО","Дашборд ДВН"],"not_rendered":{"charts":8,"images":3,"macros":1,"external_links":0,"defined_names":2,"comments":0,"pivot_tables":4},"unopened":[],"bounds":{"document_bytes":16777216,"sheet_cells":100000,"rows_first":2000,"rows_last":500,"rows_between":2000,"halvings":0,"cell_chars":16384,"cell_head_chars":4096},"cells_cut":0,"cells_raw":0,"read":"whole","date_system":"1900"}

{"sheet":"Умная Т","index":0,"n_rows":243,"n_cols":72,"rows_kept":243,"cut":false,"hidden":true,"merged":[]}
[null,null,"  Калужская область                                            по состоянию на 01.12.2022 г.",{"$f":"SUM(Таблица1[Оплачено случаев])","v":9867},null,{"$f":"SUM(Таблица1[План ДВН, чел.])","v":55395},null,null,"Выполнение плана, %",{"$f":"ROUND(D1/F1,3)","v":0.17799999999999999},null,null,null,null,null,{"$f":"(K24+P24+U24+Z24+AE24+AJ24+AO24+AT24+AY24+BD24+BI24+BN24)/(J24+O24+Y24+T24+AD24+AI24+AN24+AS24+AX24+BC24+BH24+BM24)*1000","v":1166.7047846356543}]
[null,null,"Средний тариф ДВН",{"$f":"P1","v":1166.7047846356543},null,null,null,null,null,null,"ФАКТ","ПЛАН",null,null,"ФАКТ",null,"ПЛАН",null,null,"ФАКТ",null,"ПЛАН",null,null,"ФАКТ",null,"ПЛАН",null,null,"ФАКТ",null,"ПЛАН",null,null,"ФАКТ",null,"ПЛАН",null,null,"ФАКТ",null,"ПЛАН",null,null,"ФАКТ",null,"ПЛАН",null,null,"ФАКТ",null,"ПЛАН",null,null,"ФАКТ",null,"ПЛАН",null,null,"ФАКТ",null,"ПЛАН",null,null,"ФАКТ",null,"ПЛАН"]
["Месяц","Вид ","Наименование медицинской организации","Оплачено случаев","Оплачено сумма, тыс.руб.","План ДВН, чел.","Отклонение","% выполнения",null,"1мес","январь","январь","2 мес",null,"Февраль",null,"Февраль","3 мес",null,"Март",null,"Март","4 мес",null,"Апрель",null,"Апрель","5 мес",null,"Май",null,"Май","6 мес",null,"Июнь",null,"Июнь","7 мес",null,"Июль",null,"Июль","8 мес",null,"Август",null,"Август","9 мес",null,"Сентябрь",null,"Сентябрь","10 мес",null,"Октябрь",null,"Октябрь","11 мес",null,"Ноябрь",null,"Ноябрь","12 мес",null,"Декабрь",null,"Декабрь"]
["Январь","ДВН","ЦМБ № 1",{"$f":"J4","v":0},{"$f":"K4","v":0},{"$f":"L4","v":1256},{"$f":"Таблица1[[#This Row],[Оплачено случаев]]-Таблица1[[#This Row],[План ДВН, чел.]]","v":-1256},{"$f":"ROUND(Таблица1[[#This Row],[Оплачено случаев]]/Таблица1[[#This Row],[План ДВН, чел.]]*100,1)","v":0},null,null,null,1256,{"$f":"J4+O4","v":91},{"$f":"K4+P4","v":150.81449000000001},91,150.81449000000001,1256,{"$f":"M4+T4","v":257},{"$f":"N4+U4","v":445.93394999999998},166,295.11946,1256,{"$f":"R4+Y4","v":257},{"$f":"S4+Z4","v":445.93394999999998},null,null,null,{"$f":"W4+AD4","v":257},{"$f":"X4+AE4","v":445.93394999999998},null,null,null,{"$f":"AB4+AI4","v":257},{"$f":"AC4+AJ4","v":445.93394999999998},null,null,null,{"$f":"AG4+AN4","v":257},{"$f":"AH4+AO4","v":445.93394999999998},null,null,null,{"$f":"AL4+AS4","v":257},{"$f":"AM4+AT4","v":445.93394999999998},null,null,null,{"$f":"AQ4+AX4","v":257},{"$f":"AR4+AY4","v":445.93394999999998},null,null,null,{"$f":"AV4+BC4","v":257},{"$f":"AW4+BD4","v":445.93394999999998},null,null,null,{"$f":"BA4+BH4","v":257},{"$f":"BB4+BI4","v":445.93394999999998},null,null,null,{"$f":"BM4+BF4","v":257},{"$f":"BG4+BN4","v":445.93394999999998},null,null,null,{"$f":"BO4+BJ4+BE4+AZ4+AU4+AP4+AK4+AF4+AA4+V4+Q4+L4","v":3768},2438,3318.2944699999998,{"$f":"BQ4-BF4","v":2181},{"$f":"BR4-BG4","v":2872.3605199999997}]
["Январь","ДВН","ЦМБ № 2",{"$f":"J5","v":0},{"$f":"K5","v":0},{"$f":"L5","v":1331},{"$f":"Таблица1[[#This Row],[Оплачено случаев]]-Таблица1[[#This Row],[План ДВН, чел.]]","v":-1331},{"$f":"ROUND(Таблица1[[#This Row],[Оплачено случаев]]/Таблица1[[#This Row],[План ДВН, чел.]]*100,1)","v":0},null,null,null,1331,{"$f":"J5+O5","v":10},4.0241800000000003,10,4.0241800000000003,1331,{"$f":"M5+T5","v":18},{"$f":"N5+U5","v":8.98719},8,4.9630099999999997,1331,{"$f":"R5+Y5","v":18},{"$f":"S5+Z5","v":8.98719},null,null,null,{"$f":"W5+AD5","v":18},{"$f":"X5+AE5","v":8.98719},null,null,null,{"$f":"AB5+AI5","v":18},{"$f":"AC5+AJ5","v":8.98719},null,null,null,{"$f":"AG5+AN5","v":18},{"$f":"AH5+AO5","v":8.98719},null,null,null,{"$f":"AL5+AS5","v":18},{"$f":"AM5+AT5","v":8.98719},null,null,null,{"$f":"AQ5+AX5","v":18},{"$f":"AR5+AY5","v":8.98719},null,null,null,{"$f":"AV5+BC5","v":18},{"$f":"AW5+BD5","v":8.98719},null,null,null,{"$f":"BA5+BH5","v":18},{"$f":"BB5+BI5","v":8.98719},null,null,null,{"$f":"BM5+BF5","v":18},{"$f":"BG5+BN5","v":8.98719},null,null,null,{"$f":"BO5+BJ5+BE5+AZ5+AU5+AP5+AK5+AF5+AA5+V5+Q5+L5","v":3993},846,608.10937000000001,{"$f":"BQ5-BF5","v":828},{"$f":"BR5-BG5","v":599.12217999999996}]
["Январь","ДВН","ЦМБ № 3",0,0,791,{"$f":"Таблица1[[#This Row],[Оплачено случаев]]-Таблица1[[#This Row],[План ДВН, чел.]]","v":-791},{"$f":"ROUND(Таблица1[[#This Row],[Оплачено случаев]]/Таблица1[[#This Row],[План ДВН, чел.]]*100,1)","v":0},null,null,null,791,3,2.9565299999999999,3,2.9565299999999999,791,19,35.089620000000004,16,32.133090000000003,791,19,35.089620000000004,null,null,null,19,35.089620000000004,null,null,null,19,35.089620000000004,null,null,null,19,35.089620000000004,null,null,null,19,35.089620000000004,null,null,null,19,35.089620000000004,null,null,null,19,35.089620000000004,null,null,null,19,35.089620000000004,null,null,null,19,35.089620000000004,null,null,null,2373,313,451.45323999999999,294,416.36361999999997]
["Январь","ДВН","ЦМБ № 4",0,0,352,{"$f":"Таблица1[[#This Row],[Оплачено случаев]]-Таблица1[[#This Row],[План ДВН, чел.]]","v":-352},{"$f":"ROUND(Таблица1[[#This Row],[Оплачено случаев]]/Таблица1[[#This Row],[План ДВН, чел.]]*100,1)","v":0},null,null,null,352,0,0,null,null,352,0,0,null,null,352,0,0,null,null,null,0,0,null,null,null,0,0,null,null,null,0,0,null,null,null,0,0,null,null,null,0,0,null,null,null,0,0,null,null,null,0,0,null,null,null,0,0,null,null,null,1056,60,32.058900000000001,60,32.058900000000001]
["Январь","ДВН","ЦМБ № 5",0,0,1064,{"$f":"Таблица1[[#This Row],[Оплачено случаев]]-Таблица1[[#This Row],[План ДВН, чел.]]","v":-1064},{"$f":"ROUND(Таблица1[[#This Row],[Оплачено случаев]]/Таблица1[[#This Row],[План ДВН, чел.]]*100,1)","v":0},null,null,null,1064,69,96.575339999999997,69,96.575339999999997,1064,236,274.15870000000001,167,177.58336,1064,236,274.15870000000001,null,null,null,236,274.15870000000001,null,null,null,236,274.15870000000001,null,null,null,236,274.15870000000001,null,null,null,236,274.15870000000001,null,null,null,236,274.15870000000001,null,null,null,236,274.15870000000001,null,null,null,236,274.15870000000001,null,null,null,236,274.15870000000001,null,null,null,3192,2194,2443.2508699999998,1958,2169.0921699999999]
["Январь","ДВН","ЦМБ № 6",0,0,1267,{"$f":"Таблица1[[#This Row],[Оплачено случаев]]-Таблица1[[#This Row],[План ДВН, чел.]]","v":-1267},{"$f":"ROUND(Таблица1[[#This Row],[Оплачено случаев]]/Таблица1[[#This Row],[План ДВН, чел.]]*100,1)","v":0},null,null,null,1267,241,424.56497999999999,241,424.56497999999999,1267,360,665.88771999999994,119,241.32274000000001,1267,360,665.88771999999994,null,null,null,360,665.88771999999994,null,null,null,360,665.88771999999994,null,null,null,360,665.88771999999994,null,null,null,360,665.88771999999994,null,null,null,360,665.88771999999994,null,null,null,360,665.88771999999994,null,null,null,360,665.88771999999994,null,null,null,360,665.88771999999994,null,null,null,3801,3993,5025.71461,3633,4359.8268900000003]
["Январь","ДВН","КГБ № 5",0,0,2823,{"$f":"Таблица1[[#This Row],[Оплачено случаев]]-Таблица1[[#This Row],[План ДВН, чел.]]","v":-2823},{"$f":"ROUND(Таблица1[[#This Row],[Оплачено случаев]]/Таблица1[[#This Row],[План ДВН, чел.]]*100,1)","v":0},null,null,null,2823,1412,1650.4175299999999,1412,1650.4175299999999,2823,3002,3179.9734799999997,1590,1529.5559499999999,2823,3002,3179.9734799999997,null,null,null,3002,3179.9734799999997,null,null,null,3002,3179.9734799999997,null,null,null,3002,3179.9734799999997,null,null,null,3002,3179.9734799999997,null,null,null,3002,3179.9734799999997,null,null,null,3002,3179.9734799999997,null,null,null,3002,3179.9734799999997,null,null,null,3002,3179.9734799999997,null,null,null,8469,18833,29076.439600000002,15831,25896.466120000001]
["Январь","ДВН","КГКБ № 4",0,0,2532,{"$f":"Таблица1[[#This Row],[Оплачено случаев]]-Таблица1[[#This Row],[План ДВН, чел.]]","v":-2532},{"$f":"ROUND(Таблица1[[#This Row],[Оплачено случаев]]/Таблица1[[#This Row],[План ДВН, чел.]]*100,1)","v":0},null,null,null,2532,1175,994.33059000000003,1175,994.33059000000003,2532,3150,2709.7645600000001,1975,1715.43397,2532,3150,2709.7645600000001,null,null,null,3150,2709.7645600000001,null,null,null,3150,2709.7645600000001,null,null,null,3150,2709.7645600000001,null,null,null,3150,2709.7645600000001,null,null,null,3150,2709.7645600000001,null,null,null,3150,2709.7645600000001,null,null,null,3150,2709.7645600000001,null,null,null,3150,2709.7645600000001,null,null,null,7596,14102,13056.02736,10952,10346.2628]
["Январь","ДВН","Городская поликлиника",0,0,1411,{"$f":"Таблица1[[#This Row],[Оплачено случаев]]-Таблица1[[#This Row],[План ДВН, чел.]]","v":-1411},{"$f":"ROUND(Таблица1[[#This Row],[Оплачено случаев]]/Таблица1[[#This Row],[План ДВН, чел.]]*100,1)","v":0},null,null,null,1411,578,735.41785000000004,578,735.41785000000004,1411,1083,1344.72964,505,609.31178999999997,1411,1083,1344.72964,null,null,null,1083,1344.72964,null,null,null,1083,1344.72964,null,null,null,1083,1344.72964,null,null,null,1083,1344.72964,null,null,null,1083,1344.72964,null,null,null,1083,1344.72964,null,null,null,1083,1344.72964,null,null,null,1083,1344.72964,null,null,null,4233,4744,5978.76703,3661,4634.0373899999995]
["Январь","ДВН","МСЧ № 1 г. Калуги",0,0,90,{"$f":"Таблица1[[#This Row],[Оплачено случаев]]-Таблица1[[#This Row],[План ДВН, чел.]]","v":-90},{"$f":"ROUND(Таблица1[[#This Row],[Оплачено случаев]]/Таблица1[[#This Row],[План ДВН, чел.]]*100,1)","v":0},null,null,null,90,1,1.6870499999999999,1,1.6870499999999999,90,37,59.679450000000003,36,57.992400000000004,90,37,59.679450000000003,null,null,null,37,59.679450000000003,null,null,null,37,59.679450000000003,null,null,null,37,59.679450000000003,null,null,null,37,59.679450000000003,null,null,null,37,59.679450000000003,null,null,null,37,59.679450000000003,null,null,null,37,59.679450000000003,null,null,null,37,59.679450000000003,null,null,null,270,155,237.82026999999999,118,178.14081999999999]
["Январь","ДВН","МСЧ № 2 г. Калуги",0,0,44,{"$f":"Таблица1[[#This Row],[Оплачено случаев]]-Таблица1[[#This Row],[План ДВН, чел.]]","v":-44},{"$f":"ROUND(Таблица1[[#This Row],[Оплачено случаев]]/Таблица1[[#This Row],[План ДВН, чел.]]*100,1)","v":0},null,null,null,44,0,0,null,0,44,0,0,null,0,44,0,0,null,null,null,0,0,null,null,null,0,0,null,null,null,0,0,null,null,null,0,0,null,null,null,0,0,null,null,null,0,0,null,null,null,0,0,null,null,null,0,0,null,null,null,132,86,89.100849999999994,86,89.100849999999994]
["Январь","ДВН","МСЧ МВД",0,0,0,{"$f":"Таблица1[[#This Row],[Оплачено случаев]]-Таблица1[[#This Row],[План ДВН, чел.]]","v":0},{"$f":"ROUND(Таблица1[[#This Row],[Оплачено случаев]]/Таблица1[[#This Row],[План ДВН, чел.]]*100,1)","v":{"$error":"#DIV/0!"}},null,null,null,0,0,0,null,0,0,0,0,null,0,0,0,0,null,null,null,0,0,null,null,null,0,0,null,null,null,0,0,null,null,null,0,0,null,null,null,0,0,null,null,null,0,0,null,null,null,0,0,null,null,null,0,0,null,null,null,0,null,null,0,0]
["Январь","ДВН","ЧУЗ \"Больница \"РЖД - Медицина\" ",0,0,82,{"$f":"Таблица1[[#This Row],[Оплачено случаев]]-Таблица1[[#This Row],[План ДВН, чел.]]","v":-82},{"$f":"ROUND(Таблица1[[#This Row],[Оплачено случаев]]/Таблица1[[#This Row],[План ДВН, чел.]]*100,1)","v":0},null,null,null,82,0,0,null,0,82,13,23.11401,13,23.11401,82,13,23.11401,null,null,null,13,23.11401,null,null,null,13,23.11401,null,null,null,13,23.11401,null,null,null,13,23.11401,null,null,null,13,23.11401,null,null,null,13,23.11401,null,null,null,13,23.11401,null,null,null,13,23.11401,null,null,null,246,489,861.96283000000005,476,838.84882000000005]
["Январь","ДВН","КБ № 8 ФМБА",0,0,491,{"$f":"Таблица1[[#This Row],[Оплачено случаев]]-Таблица1[[#This Row],[План ДВН, чел.]]","v":-491},{"$f":"ROUND(Таблица1[[#This Row],[Оплачено случаев]]/Таблица1[[#This Row],[План ДВН, чел.]]*100,1)","v":0},null,null,null,491,65,82.864549999999994,65,82.864549999999994,491,269,432.30772999999999,204,349.44317999999998,491,269,432.30772999999999,null,null,null,269,432.30772999999999,null,null,null,269,432.30772999999999,null,null,null,269,432.30772999999999,null,null,null,269,432.30772999999999,null,null,null,269,432.30772999999999,null,null,null,269,432.30772999999999,null,null,null,269,432.30772999999999,null,null,null,269,432.30772999999999,null,null,null,1473,4170,5009.7869099999998,3901,4577.4791800000003]
["Январь","ДВН","ЦРБ Бабынинского района",0,0,663,{"$f":"Таблица1[[#This Row],[Оплачено случаев]]-Таблица1[[#This Row],[План ДВН, чел.]]","v":-663},{"$f":"ROUND(Таблица1[[#This Row],[Оплачено случаев]]/Таблица1[[#This Row],[План ДВН, чел.]]*100,1)","v":0},null,null,null,663,54,96.085009999999997,54,96.085009999999997,663,223,385.11035000000004,169,289.02534000000003,663,223,385.11035000000004,null,null,null,223,385.11035000000004,null,null,null,223,385.11035000000004,null,null,null,223,385.11035000000004,null,null,null,223,385.11035000000004,null,null,null,223,385.11035000000004,null,null,null,223,385.11035000000004,null,null,null,223,385.11035000000004,null,null,null,223,385.11035000000004,null,null,null,1989,2568,4348.7132700000002,2345,3963.6029200000003]
["Январь","ДВН","ЦРБ Боровского района",0,0,1227,{"$f":"Таблица1[[#This Row],[Оплачено случаев]]-Таблица1[[#This Row],[План ДВН, чел.]]","v":-1227},{"$f":"ROUND(Таблица1[[#This Row],[Оплачено случаев]]/Таблица1[[#This Row],[План ДВН, чел.]]*100,1)","v":0},null,null,null,1227,159,369.30583999999999,159,369.30583999999999,1227,348,770.61294999999996,189,401.30711000000002,1227,348,770.61294999999996,null,null,null,348,770.61294999999996,null,null,null,348,770.61294999999996,null,null,null,348,770.61294999999996,null,null,null,348,770.61294999999996,null,null,null,348,770.61294999999996,null,null,null,348,770.61294999999996,null,null,null,348,770.61294999999996,null,null,null,348,770.61294999999996,null,null,null,3681,4143,7076.6644399999996,3795,6306.0514899999998]
["Январь","ДВН","ЦРБ Жуковского района",0,0,978,{"$f":"Таблица1[[#This Row],[Оплачено случаев]]-Таблица1[[#This Row],[План ДВН, чел.]]","v":-978},{"$f":"ROUND(Таблица1[[#This Row],[Оплачено случаев]]/Таблица1[[#This Row],[План ДВН, чел.]]*100,1)","v":0},null,null,null,978,0,0,null,0,978,23,8.5209700000000002,23,8.5209700000000002,978,23,8.5209700000000002,null,null,null,23,8.5209700000000002,null,null,null,23,8.5209700000000002,null,null,null,23,8.5209700000000002,null,null,null,23,8.5209700000000002,null,null,null,23,8.5209700000000002,null,null,null,23,8.5209700000000002,null,null,null,23,8.5209700000000002,null,null,null,23,8.5209700000000002,null,null,null,2934,2778,2555.55179,2755,2547.0308199999999]
["Январь","ДВН","ГП \"Город Кременки\"",0,0,188,{"$f":"Таблица1[[#This Row],[Оплачено случаев]]-Таблица1[[#This Row],[План ДВН, чел.]]","v":-188},{"$f":"ROUND(Таблица1[[#This Row],[Оплачено случаев]]/Таблица1[[#This Row],[План ДВН, чел.]]*100,1)","v":0},null,null,null,188,2,3.2679299999999998,2,3.2679299999999998,188,2,3.2679299999999998,null,0,188,2,3.2679299999999998,null,null,null,2,3.2679299999999998,null,null,null,2,3.2679299999999998,null,null,null,2,3.2679299999999998,null,null,null,2,3.2679299999999998,null,null,null,2,3.2679299999999998,null,null,null,2,3.2679299999999998,null,null,null,2,3.2679299999999998,null,null,null,2,3.2679299999999998,null,null,null,564,1187,1692.55267,1185,1689.2847400000001]
["Январь","ДВН","ЦРБ Малоярославецкого района",0,0,1269,{"$f":"Таблица1[[#This Row],[Оплачено случаев]]-Таблица1[[#This Row],[План ДВН, чел.]]","v":-1269},{"$f":"ROUND(Таблица1[[#This Row],[Оплачено случаев]]/Таблица1[[#This Row],[План ДВН, чел.]]*100,1)","v":0},null,null,null,1269,314,456.33085999999997,314,456.33085999999997,1269,811,1149.6130599999999,497,693.28219999999999,1269,811,1149.6130599999999,null,null,null,811,1149.6130599999999,null,null,null,811,1149.6130599999999,null,null,null,811,1149.6130599999999,null,null,null,811,1149.6130599999999,null,null,null,811,1149.6130599999999,null,null,null,811,1149.6130599999999,null,null,null,811,1149.6130599999999,null,null,null,811,1149.6130599999999,null,null,null,3807,5532,8405.4923299999991,4721,7255.8792699999995]
["Январь","ДВН","ЦРБ  Тарусского района",0,0,606,{"$f":"Таблица1[[#This Row],[Оплачено случаев]]-Таблица1[[#This Row],[План ДВН, чел.]]","v":-606},{"$f":"ROUND(Таблица1[[#This Row],[Оплачено случаев]]/Таблица1[[#This Row],[План ДВН, чел.]]*100,1)","v":0},null,null,null,606,8,8.9150899999999993,8,8.9150899999999993,606,16,15.1248,8,6.2097100000000003,606,16,15.1248,null,null,null,16,15.1248,null,null,null,16,15.1248,null,null,null,16,15.1248,null,null,null,16,15.1248,null,null,null,16,15.1248,null,null,null,16,15.1248,null,null,null,16,15.1248,null,null,null,16,15.1248,null,null,null,1818,1630,1433.2674199999999,1614,1418.1426199999999]
["Февраль","ДВН","ЦМБ № 1",{"$f":"O4","v":91},{"$f":"P4","v":150.81449000000001},{"$f":"Q4","v":1256},{"$f":"Таблица1[[#This Row],[Оплачено случаев]]-Таблица1[[#This Row],[План ДВН, чел.]]","v":-1165},{"$f":"ROUND(Таблица1[[#This Row],[Оплачено случаев]]/Таблица1[[#This Row],[План ДВН, чел.]]*100,1)","v":7.2},null,{"$f":"SUM(J4:J23)","v":0},0,18465,4182,5077.55782,4182,5077.55782,18465,9867,11511.876109999999,5685,6434.3182899999993,18465,9867,11511.876109999999,0,0,0,9867,11511.876109999999,0,0,0,9867,11511.876109999999,0,0,0,9867,11511.876109999999,0,0,{"$f":"SUM(AP4:AP23)","v":0},9867,11511.876109999999,0,0,0,9867,11511.876109999999,0,0,0,9867,11511.876109999999,0,0,0,9867,11511.876109999999,0,0,0,9867,11511.876109999999,0,0,0,55395]
["Февраль","ДВН","ЦМБ № 2",10,4.0241800000000003,1331,{"$f":"Таблица1[[#This Row],[Оплачено случаев]]-Таблица1[[#This Row],[План ДВН, чел.]]","v":-1321},{"$f":"ROUND(Таблица1[[#This Row],[Оплачено случаев]]/Таблица1[[#This Row],[План ДВН, чел.]]*100,1)","v":0.8}]
["Февраль","ДВН","ЦМБ № 3",3,2.9565299999999999,791,{"$f":"Таблица1[[#This Row],[Оплачено случаев]]-Таблица1[[#This Row],[План ДВН, чел.]]","v":-788},{"$f":"ROUND(Таблица1[[#This Row],[Оплачено случаев]]/Таблица1[[#This Row],[План ДВН, чел.]]*100,1)","v":0.4},null,null,{"$f":"K4/1000","v":0},null,null,null,null,{"$f":"P4/1000","v":0.15081449},null,null,null,null,{"$f":"U4/1000","v":0.29511946}]
["Февраль","ДВН","ЦМБ № 4",0,0,352,{"$f":"Таблица1[[#This Row],[Оплачено случаев]]-Таблица1[[#This Row],[План ДВН, чел.]]","v":-352},{"$f":"ROUND(Таблица1[[#This Row],[Оплачено случаев]]/Таблица1[[#This Row],[План ДВН, чел.]]*100,1)","v":0},null,null,0,null,null,null,null,{"$f":"P5/1000","v":4.0241800000000005E-3},null,null,null,null,{"$f":"U5/1000","v":4.9630099999999995E-3}]
["Февраль","ДВН","ЦМБ № 5",69,96.575339999999997,1064,{"$f":"Таблица1[[#This Row],[Оплачено случаев]]-Таблица1[[#This Row],[План ДВН, чел.]]","v":-995},{"$f":"ROUND(Таблица1[[#This Row],[Оплачено случаев]]/Таблица1[[#This Row],[План ДВН, чел.]]*100,1)","v":6.5},null,null,0,null,null,null,null,2.9565299999999997E-3,null,null,null,null,3.2133090000000003E-2]
["Февраль","ДВН","ЦМБ № 6",241,424.56497999999999,1267,{"$f":"Таблица1[[#This Row],[Оплачено случаев]]-Таблица1[[#This Row],[План ДВН, чел.]]","v":-1026},{"$f":"ROUND(Таблица1[[#This Row],[Оплачено случаев]]/Таблица1[[#This Row],[План ДВН, чел.]]*100,1)","v":19},null,null,0,null,null,null,null,0,null,null,null,null,0]
["Февраль","ДВН","КГБ № 5",1412,1650.4175299999999,2823,{"$f":"Таблица1[[#This Row],[Оплачено случаев]]-Таблица1[[#This Row],[План ДВН, чел.]]","v":-1411},{"$f":"ROUND(Таблица1[[#This Row],[Оплачено случаев]]/Таблица1[[#This Row],[План ДВН, чел.]]*100,1)","v":50},null,null,0,null,null,null,null,9.6575339999999996E-2,null,null,null,null,0.17758336]
["Февраль","ДВН","КГКБ № 4",1175,994.33059000000003,2532,{"$f":"Таблица1[[#This Row],[Оплачено случаев]]-Таблица1[[#This Row],[План ДВН, чел.]]","v":-1357},{"$f":"ROUND(Таблица1[[#This Row],[Оплачено случаев]]/Таблица1[[#This Row],[План ДВН, чел.]]*100,1)","v":46.4},null,null,0,null,null,null,null,0.42456497999999998,null,null,null,null,0.24132274000000001]
["Февраль","ДВН","Городская поликлиника",578,735.41785000000004,1411,{"$f":"Таблица1[[#This Row],[Оплачено случаев]]-Таблица1[[#This Row],[План ДВН, чел.]]","v":-833},{"$f":"ROUND(Таблица1[[#This Row],[Оплачено случаев]]/Таблица1[[#This Row],[План ДВН, чел.]]*100,1)","v":41},null,null,0,null,null,null,null,1.6504175299999999,null,null,null,null,1.52955595]
["Февраль","ДВН","МСЧ № 1 г. Калуги",1,1.6870499999999999,90,{"$f":"Таблица1[[#This Row],[Оплачено случаев]]-Таблица1[[#This Row],[План ДВН, чел.]]","v":-89},{"$f":"ROUND(Таблица1[[#This Row],[Оплачено случаев]]/Таблица1[[#This Row],[План ДВН, чел.]]*100,1)","v":1.1000000000000001},null,null,0,null,null,null,null,0.99433059000000001,null,null,null,null,1.7154339700000001]
["Февраль","ДВН","МСЧ № 2 г. Калуги",0,0,44,{"$f":"Таблица1[[#This Row],[Оплачено случаев]]-Таблица1[[#This Row],[План ДВН, чел.]]","v":-44},{"$f":"ROUND(Таблица1[[#This Row],[Оплачено случаев]]/Таблица1[[#This Row],[План ДВН, чел.]]*100,1)","v":0},null,null,0,null,null,null,null,0.73541785000000004,null,null,null,null,0.60931179000000002]
["Февраль","ДВН","МСЧ МВД",0,0,0,{"$f":"Таблица1[[#This Row],[Оплачено случаев]]-Таблица1[[#This Row],[План ДВН, чел.]]","v":0},{"$f":"ROUND(Таблица1[[#This Row],[Оплачено случаев]]/Таблица1[[#This Row],[План ДВН, чел.]]*100,1)","v":{"$error":"#DIV/0!"}},null,null,0,null,null,null,null,1.6870499999999998E-3,null,null,null,null,5.7992400000000006E-2]
["Февраль","ДВН","ЧУЗ \"Больница \"РЖД - Медицина\" ",0,0,82,{"$f":"Таблица1[[#This Row],[Оплачено случаев]]-Таблица1[[#This Row],[План ДВН, чел.]]","v":-82},{"$f":"ROUND(Таблица1[[#This Row],[Оплачено случаев]]/Таблица1[[#This Row],[План ДВН, чел.]]*100,1)","v":0},null,null,0,null,null,null,null,0,null,null,null,null,0]
["Февраль","ДВН","КБ № 8 ФМБА",65,82.864549999999994,491,{"$f":"Таблица1[[#This Row],[Оплачено случаев]]-Таблица1[[#This Row],[План ДВН, чел.]]","v":-426},{"$f":"ROUND(Таблица1[[#This Row],[Оплачено случаев]]/Таблица1[[#This Row],[План ДВН, чел.]]*100,1)","v":13.2},null,null,0,null,null,null,null,0,null,null,null,null,0]
["Февраль","ДВН","ЦРБ Бабынинского района",54,96.085009999999997,663,{"$f":"Таблица1[[#This Row],[Оплачено случаев]]-Таблица1[[#This Row],[План ДВН, чел.]]","v":-609},{"$f":"ROUND(Таблица1[[#This Row],[Оплачено случаев]]/Таблица1[[#This Row],[План ДВН, чел.]]*100,1)","v":8.1},null,null,0,null,null,null,null,0,null,null,null,null,2.3114010000000001E-2]
["Февраль","ДВН","ЦРБ Боровского района",159,369.30583999999999,1227,{"$f":"Таблица1[[#This Row],[Оплачено случаев]]-Таблица1[[#This Row],[План ДВН, чел.]]","v":-1068},{"$f":"ROUND(Таблица1[[#This Row],[Оплачено случаев]]/Таблица1[[#This Row],[План ДВН, чел.]]*100,1)","v":13},null,null,0,null,null,null,null,8.2864549999999995E-2,null,null,null,null,0.34944317999999996]
["Февраль","ДВН","ЦРБ Жуковского района",0,0,978,{"$f":"Таблица1[[#This Row],[Оплачено случаев]]-Таблица1[[#This Row],[План ДВН, чел.]]","v":-978},{"$f":"ROUND(Таблица1[[#This Row],[Оплачено случаев]]/Таблица1[[#This Row],[План ДВН, чел.]]*100,1)","v":0},null,null,0,null,null,null,null,9.6085009999999998E-2,null,null,null,null,0.28902534000000002]
["Февраль","ДВН","ГП \"Город Кременки\"",2,3.2679299999999998,188,{"$f":"Таблица1[[#This Row],[Оплачено случаев]]-Таблица1[[#This Row],[План ДВН, чел.]]","v":-186},{"$f":"ROUND(Таблица1[[#This Row],[Оплачено случаев]]/Таблица1[[#This Row],[План ДВН, чел.]]*100,1)","v":1.1000000000000001},null,null,0,null,null,null,null,0.36930584,null,null,null,null,0.40130711000000002]
["Февраль","ДВН","ЦРБ Малоярославецкого района",314,456.33085999999997,1269,{"$f":"Таблица1[[#This Row],[Оплачено случаев]]-Таблица1[[#This Row],[План ДВН, чел.]]","v":-955},{"$f":"ROUND(Таблица1[[#This Row],[Оплачено случаев]]/Таблица1[[#This Row],[План ДВН, чел.]]*100,1)","v":24.7},null,null,0,null,null,null,null,0,null,null,null,null,8.520970000000001E-3]
["Февраль","ДВН","ЦРБ  Тарусского района",8,8.9150899999999993,606,{"$f":"Таблица1[[#This Row],[Оплачено случаев]]-Таблица1[[#This Row],[План ДВН, чел.]]","v":-598},{"$f":"ROUND(Таблица1[[#This Row],[Оплачено случаев]]/Таблица1[[#This Row],[План ДВН, чел.]]*100,1)","v":1.3},null,null,0,null,null,null,null,3.2679299999999996E-3,null,null,null,null,0]
["Март","ДВН","ЦМБ № 1",{"$f":"T4","v":166},{"$f":"U4","v":295.11946},{"$f":"V4","v":1256},{"$f":"Таблица1[[#This Row],[Оплачено случаев]]-Таблица1[[#This Row],[План ДВН, чел.]]","v":-1090},{"$f":"ROUND(Таблица1[[#This Row],[Оплачено случаев]]/Таблица1[[#This Row],[План ДВН, чел.]]*100,1)","v":13.2},null,null,{"$f":"K23/1000","v":0},null,null,null,null,0.45633085999999995,null,null,null,null,0.69328219999999996]
["Март","ДВН","ЦМБ № 2",8,4.9630099999999997,1331,{"$f":"Таблица1[[#This Row],[Оплачено случаев]]-Таблица1[[#This Row],[План ДВН, чел.]]","v":-1323},{"$f":"ROUND(Таблица1[[#This Row],[Оплачено случаев]]/Таблица1[[#This Row],[План ДВН, чел.]]*100,1)","v":0.6},null,null,{"$f":"#REF!/1000","v":{"$error":"#REF!"}},null,null,null,null,8.9150899999999988E-3,null,null,null,null,6.2097100000000002E-3]
["Март","ДВН","ЦМБ № 3",16,32.133090000000003,791,{"$f":"Таблица1[[#This Row],[Оплачено случаев]]-Таблица1[[#This Row],[План ДВН, чел.]]","v":-775},{"$f":"ROUND(Таблица1[[#This Row],[Оплачено случаев]]/Таблица1[[#This Row],[План ДВН, чел.]]*100,1)","v":2},null,null,{"$f":"K24/1000","v":0},null,null,null,null,5.07755782]
["Март","ДВН","ЦМБ № 4",0,0,352,{"$f":"Таблица1[[#This Row],[Оплачено случаев]]-Таблица1[[#This Row],[План ДВН, чел.]]","v":-352},{"$f":"ROUND(Таблица1[[#This Row],[Оплачено случаев]]/Таблица1[[#This Row],[План ДВН, чел.]]*100,1)","v":0},null,null,0,null,null,null,null,0]
["Март","ДВН","ЦМБ № 5",167,177.58336,1064,{"$f":"Таблица1[[#This Row],[Оплачено случаев]]-Таблица1[[#This Row],[План ДВН, чел.]]","v":-897},{"$f":"ROUND(Таблица1[[#This Row],[Оплачено случаев]]/Таблица1[[#This Row],[План ДВН, чел.]]*100,1)","v":15.7},null,null,0,null,null,null,null,1.5081449E-4]
["Март","ДВН","ЦМБ № 6",119,241.32274000000001,1267,{"$f":"Таблица1[[#This Row],[Оплачено случаев]]-Таблица1[[#This Row],[План ДВН, чел.]]","v":-1148},{"$f":"ROUND(Таблица1[[#This Row],[Оплачено случаев]]/Таблица1[[#This Row],[План ДВН, чел.]]*100,1)","v":9.4},null,null,0,null,null,null,null,4.0241800000000007E-6]
["Март","ДВН","КГБ № 5",1590,1529.5559499999999,2823,{"$f":"Таблица1[[#This Row],[Оплачено случаев]]-Таблица1[[#This Row],[План ДВН, чел.]]","v":-1233},{"$f":"ROUND(Таблица1[[#This Row],[Оплачено случаев]]/Таблица1[[#This Row],[План ДВН, чел.]]*100,1)","v":56.3},null,null,0]
["Март","ДВН","КГКБ № 4",1975,1715.43397,2532,{"$f":"Таблица1[[#This Row],[Оплачено случаев]]-Таблица1[[#This Row],[План ДВН, чел.]]","v":-557},{"$f":"ROUND(Таблица1[[#This Row],[Оплачено случаев]]/Таблица1[[#This Row],[План ДВН, чел.]]*100,1)","v":78},null,null,0]
["Март","ДВН","Городская поликлиника",505,609.31178999999997,1411,{"$f":"Таблица1[[#This Row],[Оплачено случаев]]-Таблица1[[#This Row],[План ДВН, чел.]]","v":-906},{"$f":"ROUND(Таблица1[[#This Row],[Оплачено случаев]]/Таблица1[[#This Row],[План ДВН, чел.]]*100,1)","v":35.799999999999997},null,null,0]
["Март","ДВН","МСЧ № 1 г. Калуги",36,57.992400000000004,90,{"$f":"Таблица1[[#This Row],[Оплачено случаев]]-Таблица1[[#This Row],[План ДВН, чел.]]","v":-54},{"$f":"ROUND(Таблица1[[#This Row],[Оплачено случаев]]/Таблица1[[#This Row],[План ДВН, чел.]]*100,1)","v":40},null,null,0]
["Март","ДВН","МСЧ № 2 г. Калуги",0,0,44,{"$f":"Таблица1[[#This Row],[Оплачено случаев]]-Таблица1[[#This Row],[План ДВН, чел.]]","v":-44},{"$f":"ROUND(Таблица1[[#This Row],[Оплачено случаев]]/Таблица1[[#This Row],[План ДВН, чел.]]*100,1)","v":0},null,null,0]
["Март","ДВН","МСЧ МВД",0,0,0,{"$f":"Таблица1[[#This Row],[Оплачено случаев]]-Таблица1[[#This Row],[План ДВН, чел.]]","v":0},{"$f":"ROUND(Таблица1[[#This Row],[Оплачено случаев]]/Таблица1[[#This Row],[План ДВН, чел.]]*100,1)","v":{"$error":"#DIV/0!"}},null,null,0]
["Март","ДВН","ЧУЗ \"Больница \"РЖД - Медицина\" ",13,23.11401,82,{"$f":"Таблица1[[#This Row],[Оплачено случаев]]-Таблица1[[#This Row],[План ДВН, чел.]]","v":-69},{"$f":"ROUND(Таблица1[[#This Row],[Оплачено случаев]]/Таблица1[[#This Row],[План ДВН, чел.]]*100,1)","v":15.9},null,null,0]
["Март","ДВН","КБ № 8 ФМБА",204,349.44317999999998,491,{"$f":"Таблица1[[#This Row],[Оплачено случаев]]-Таблица1[[#This Row],[План ДВН, чел.]]","v":-287},{"$f":"ROUND(Таблица1[[#This Row],[Оплачено случаев]]/Таблица1[[#This Row],[План ДВН, чел.]]*100,1)","v":41.5},null,null,0]
["Март","ДВН","ЦРБ Бабынинского района",169,289.02534000000003,663,{"$f":"Таблица1[[#This Row],[Оплачено случаев]]-Таблица1[[#This Row],[План ДВН, чел.]]","v":-494},{"$f":"ROUND(Таблица1[[#This Row],[Оплачено случаев]]/Таблица1[[#This Row],[План ДВН, чел.]]*100,1)","v":25.5},null,null,0]
["Март","ДВН","ЦРБ Боровского района",189,401.30711000000002,1227,{"$f":"Таблица1[[#This Row],[Оплачено случаев]]-Таблица1[[#This Row],[План ДВН, чел.]]","v":-1038},{"$f":"ROUND(Таблица1[[#This Row],[Оплачено случаев]]/Таблица1[[#This Row],[План ДВН, чел.]]*100,1)","v":15.4},null,null,0]
["Март","ДВН","ЦРБ Жуковского района",23,8.5209700000000002,978,{"$f":"Таблица1[[#This Row],[Оплачено случаев]]-Таблица1[[#This Row],[План ДВН, чел.]]","v":-955},{"$f":"ROUND(Таблица1[[#This Row],[Оплачено случаев]]/Таблица1[[#This Row],[План ДВН, чел.]]*100,1)","v":2.4},null,null,0]
["Март","ДВН","ГП \"Город Кременки\"",0,0,188,{"$f":"Таблица1[[#This Row],[Оплачено случаев]]-Таблица1[[#This Row],[План ДВН, чел.]]","v":-188},{"$f":"ROUND(Таблица1[[#This Row],[Оплачено случаев]]/Таблица1[[#This Row],[План ДВН, чел.]]*100,1)","v":0},null,null,0]
["Март","ДВН","ЦРБ Малоярославецкого района",497,693.28219999999999,1269,{"$f":"Таблица1[[#This Row],[Оплачено случаев]]-Таблица1[[#This Row],[План ДВН, чел.]]","v":-772},{"$f":"ROUND(Таблица1[[#This Row],[Оплачено случаев]]/Таблица1[[#This Row],[План ДВН, чел.]]*100,1)","v":39.200000000000003},null,null,0]
["Март","ДВН","ЦРБ  Тарусского района",8,6.2097100000000003,606,{"$f":"Таблица1[[#This Row],[Оплачено случаев]]-Таблица1[[#This Row],[План ДВН, чел.]]","v":-598},{"$f":"ROUND(Таблица1[[#This Row],[Оплачено случаев]]/Таблица1[[#This Row],[План ДВН, чел.]]*100,1)","v":1.3},null,null,0]
["Апрель","ДВН","ЦМБ № 1",{"$f":"Y4","v":0},{"$f":"Z4","v":0},{"$f":"AA4","v":0},{"$f":"Таблица1[[#This Row],[Оплачено случаев]]-Таблица1[[#This Row],[План ДВН, чел.]]","v":0},{"$f":"ROUND(Таблица1[[#This Row],[Оплачено случаев]]/Таблица1[[#This Row],[План ДВН, чел.]]*100,1)","v":{"$error":"#DIV/0!"}},null,null,{"$f":"K43/1000","v":0}]
["Апрель","ДВН","ЦМБ № 2",0,0,0,{"$f":"Таблица1[[#This Row],[Оплачено случаев]]-Таблица1[[#This Row],[План ДВН, чел.]]","v":0},{"$f":"ROUND(Таблица1[[#This Row],[Оплачено случаев]]/Таблица1[[#This Row],[План ДВН, чел.]]*100,1)","v":{"$error":"#DIV/0!"}},null,null,{"$f":"#REF!/1000","v":{"$error":"#REF!"}}]
["Апрель","ДВН","ЦМБ № 3",0,0,0,{"$f":"Таблица1[[#This Row],[Оплачено случаев]]-Таблица1[[#This Row],[План ДВН, чел.]]","v":0},{"$f":"ROUND(Таблица1[[#This Row],[Оплачено случаев]]/Таблица1[[#This Row],[План ДВН, чел.]]*100,1)","v":{"$error":"#DIV/0!"}},null,null,{"$f":"K44/1000","v":0}]
["Апрель","ДВН","ЦМБ № 4",0,0,0,{"$f":"Таблица1[[#This Row],[Оплачено случаев]]-Таблица1[[#This Row],[План ДВН, чел.]]","v":0},{"$f":"ROUND(Таблица1[[#This Row],[Оплачено случаев]]/Таблица1[[#This Row],[План ДВН, чел.]]*100,1)","v":{"$error":"#DIV/0!"}},null,null,{"$error":"#REF!"}]
["Апрель","ДВН","ЦМБ № 5",0,0,0,{"$f":"Таблица1[[#This Row],[Оплачено случаев]]-Таблица1[[#This Row],[План ДВН, чел.]]","v":0},{"$f":"ROUND(Таблица1[[#This Row],[Оплачено случаев]]/Таблица1[[#This Row],[План ДВН, чел.]]*100,1)","v":{"$error":"#DIV/0!"}},null,null,0]
["Апрель","ДВН","ЦМБ № 6",0,0,0,{"$f":"Таблица1[[#This Row],[Оплачено случаев]]-Таблица1[[#This Row],[План ДВН, чел.]]","v":0},{"$f":"ROUND(Таблица1[[#This Row],[Оплачено случаев]]/Таблица1[[#This Row],[План ДВН, чел.]]*100,1)","v":{"$error":"#DIV/0!"}},null,null,0]
["Апрель","ДВН","КГБ № 5",0,0,0,{"$f":"Таблица1[[#This Row],[Оплачено случаев]]-Таблица1[[#This Row],[План ДВН, чел.]]","v":0},{"$f":"ROUND(Таблица1[[#This Row],[Оплачено случаев]]/Таблица1[[#This Row],[План ДВН, чел.]]*100,1)","v":{"$error":"#DIV/0!"}},null,null,0]
["Апрель","ДВН","КГКБ № 4",0,0,0,{"$f":"Таблица1[[#This Row],[Оплачено случаев]]-Таблица1[[#This Row],[План ДВН, чел.]]","v":0},{"$f":"ROUND(Таблица1[[#This Row],[Оплачено случаев]]/Таблица1[[#This Row],[План ДВН, чел.]]*100,1)","v":{"$error":"#DIV/0!"}},null,null,0]
["Апрель","ДВН","Городская поликлиника",0,0,0,{"$f":"Таблица1[[#This Row],[Оплачено случаев]]-Таблица1[[#This Row],[План ДВН, чел.]]","v":0},{"$f":"ROUND(Таблица1[[#This Row],[Оплачено случаев]]/Таблица1[[#This Row],[План ДВН, чел.]]*100,1)","v":{"$error":"#DIV/0!"}},null,null,0]
["Апрель","ДВН","МСЧ № 1 г. Калуги",0,0,0,{"$f":"Таблица1[[#This Row],[Оплачено случаев]]-Таблица1[[#This Row],[План ДВН, чел.]]","v":0},{"$f":"ROUND(Таблица1[[#This Row],[Оплачено случаев]]/Таблица1[[#This Row],[План ДВН, чел.]]*100,1)","v":{"$error":"#DIV/0!"}},null,null,0]
["Апрель","ДВН","МСЧ № 2 г. Калуги",0,0,0,{"$f":"Таблица1[[#This Row],[Оплачено случаев]]-Таблица1[[#This Row],[План ДВН, чел.]]","v":0},{"$f":"ROUND(Таблица1[[#This Row],[Оплачено случаев]]/Таблица1[[#This Row],[План ДВН, чел.]]*100,1)","v":{"$error":"#DIV/0!"}},null,null,0]
["Апрель","ДВН","МСЧ МВД",0,0,0,{"$f":"Таблица1[[#This Row],[Оплачено случаев]]-Таблица1[[#This Row],[План ДВН, чел.]]","v":0},{"$f":"ROUND(Таблица1[[#This Row],[Оплачено случаев]]/Таблица1[[#This Row],[План ДВН, чел.]]*100,1)","v":{"$error":"#DIV/0!"}},null,null,0]
["Апрель","ДВН","ЧУЗ \"Больница \"РЖД - Медицина\" ",0,0,0,{"$f":"Таблица1[[#This Row],[Оплачено случаев]]-Таблица1[[#This Row],[План ДВН, чел.]]","v":0},{"$f":"ROUND(Таблица1[[#This Row],[Оплачено случаев]]/Таблица1[[#This Row],[План ДВН, чел.]]*100,1)","v":{"$error":"#DIV/0!"}},null,null,0]
["Апрель","ДВН","КБ № 8 ФМБА",0,0,0,{"$f":"Таблица1[[#This Row],[Оплачено случаев]]-Таблица1[[#This Row],[План ДВН, чел.]]","v":0},{"$f":"ROUND(Таблица1[[#This Row],[Оплачено случаев]]/Таблица1[[#This Row],[План ДВН, чел.]]*100,1)","v":{"$error":"#DIV/0!"}},null,null,0]
["Апрель","ДВН","ЦРБ Бабынинского района",0,0,0,{"$f":"Таблица1[[#This Row],[Оплачено случаев]]-Таблица1[[#This Row],[План ДВН, чел.]]","v":0},{"$f":"ROUND(Таблица1[[#This Row],[Оплачено случаев]]/Таблица1[[#This Row],[План ДВН, чел.]]*100,1)","v":{"$error":"#DIV/0!"}},null,null,0]
["Апрель","ДВН","ЦРБ Боровского района",0,0,0,{"$f":"Таблица1[[#This Row],[Оплачено случаев]]-Таблица1[[#This Row],[План ДВН, чел.]]","v":0},{"$f":"ROUND(Таблица1[[#This Row],[Оплачено случаев]]/Таблица1[[#This Row],[План ДВН, чел.]]*100,1)","v":{"$error":"#DIV/0!"}},null,null,0]
["Апрель","ДВН","ЦРБ Жуковского района",0,0,0,{"$f":"Таблица1[[#This Row],[Оплачено случаев]]-Таблица1[[#This Row],[План ДВН, чел.]]","v":0},{"$f":"ROUND(Таблица1[[#This Row],[Оплачено случаев]]/Таблица1[[#This Row],[План ДВН, чел.]]*100,1)","v":{"$error":"#DIV/0!"}},null,null,0]
["Апрель","ДВН","ГП \"Город Кременки\"",0,0,0,{"$f":"Таблица1[[#This Row],[Оплачено случаев]]-Таблица1[[#This Row],[План ДВН, чел.]]","v":0},{"$f":"ROUND(Таблица1[[#This Row],[Оплачено случаев]]/Таблица1[[#This Row],[План ДВН, чел.]]*100,1)","v":{"$error":"#DIV/0!"}},null,null,0]
["Апрель","ДВН","ЦРБ Малоярославецкого района",0,0,0,{"$f":"Таблица1[[#This Row],[Оплачено случаев]]-Таблица1[[#This Row],[План ДВН, чел.]]","v":0},{"$f":"ROUND(Таблица1[[#This Row],[Оплачено случаев]]/Таблица1[[#This Row],[План ДВН, чел.]]*100,1)","v":{"$error":"#DIV/0!"}},null,null,0]
["Апрель","ДВН","ЦРБ  Тарусского района",0,0,0,{"$f":"Таблица1[[#This Row],[Оплачено случаев]]-Таблица1[[#This Row],[План ДВН, чел.]]","v":0},{"$f":"ROUND(Таблица1[[#This Row],[Оплачено случаев]]/Таблица1[[#This Row],[План ДВН, чел.]]*100,1)","v":{"$error":"#DIV/0!"}},null,null,0]
["Май","ДВН","ЦМБ № 1",{"$f":"AD4","v":0},{"$f":"AE4","v":0},{"$f":"AF4","v":0},{"$f":"Таблица1[[#This Row],[Оплачено случаев]]-Таблица1[[#This Row],[План ДВН, чел.]]","v":0},{"$f":"ROUND(Таблица1[[#This Row],[Оплачено случаев]]/Таблица1[[#This Row],[План ДВН, чел.]]*100,1)","v":{"$error":"#DIV/0!"}},null,null,{"$f":"K63/1000","v":0}]
["Май","ДВН","ЦМБ № 2",0,0,0,{"$f":"Таблица1[[#This Row],[Оплачено случаев]]-Таблица1[[#This Row],[План ДВН, чел.]]","v":0},{"$f":"ROUND(Таблица1[[#This Row],[Оплачено случаев]]/Таблица1[[#This Row],[План ДВН, чел.]]*100,1)","v":{"$error":"#DIV/0!"}},null,null,{"$f":"#REF!/1000","v":{"$error":"#REF!"}}]
["Май","ДВН","ЦМБ № 3",0,0,0,{"$f":"Таблица1[[#This Row],[Оплачено случаев]]-Таблица1[[#This Row],[План ДВН, чел.]]","v":0},{"$f":"ROUND(Таблица1[[#This Row],[Оплачено случаев]]/Таблица1[[#This Row],[План ДВН, чел.]]*100,1)","v":{"$error":"#DIV/0!"}},null,null,{"$f":"K64/1000","v":0}]
["Май","ДВН","ЦМБ № 4",0,0,0,{"$f":"Таблица1[[#This Row],[Оплачено случаев]]-Таблица1[[#This Row],[План ДВН, чел.]]","v":0},{"$f":"ROUND(Таблица1[[#This Row],[Оплачено случаев]]/Таблица1[[#This Row],[План ДВН, чел.]]*100,1)","v":{"$error":"#DIV/0!"}},null,null,{"$error":"#REF!"}]
["Май","ДВН","ЦМБ № 5",0,0,0,{"$f":"Таблица1[[#This Row],[Оплачено случаев]]-Таблица1[[#This Row],[План ДВН, чел.]]","v":0},{"$f":"ROUND(Таблица1[[#This Row],[Оплачено случаев]]/Таблица1[[#This Row],[План ДВН, чел.]]*100,1)","v":{"$error":"#DIV/0!"}},null,null,0]
["Май","ДВН","ЦМБ № 6",0,0,0,{"$f":"Таблица1[[#This Row],[Оплачено случаев]]-Таблица1[[#This Row],[План ДВН, чел.]]","v":0},{"$f":"ROUND(Таблица1[[#This Row],[Оплачено случаев]]/Таблица1[[#This Row],[План ДВН, чел.]]*100,1)","v":{"$error":"#DIV/0!"}},null,null,{"$error":"#REF!"}]
["Май","ДВН","КГБ № 5",0,0,0,{"$f":"Таблица1[[#This Row],[Оплачено случаев]]-Таблица1[[#This Row],[План ДВН, чел.]]","v":0},{"$f":"ROUND(Таблица1[[#This Row],[Оплачено случаев]]/Таблица1[[#This Row],[План ДВН, чел.]]*100,1)","v":{"$error":"#DIV/0!"}},null,null,0]
["Май","ДВН","КГКБ № 4",0,0,0,{"$f":"Таблица1[[#This Row],[Оплачено случаев]]-Таблица1[[#This Row],[План ДВН, чел.]]","v":0},{"$f":"ROUND(Таблица1[[#This Row],[Оплачено случаев]]/Таблица1[[#This Row],[План ДВН, чел.]]*100,1)","v":{"$error":"#DIV/0!"}},null,null,0]
["Май","ДВН","Городская поликлиника",0,0,0,{"$f":"Таблица1[[#This Row],[Оплачено случаев]]-Таблица1[[#This Row],[План ДВН, чел.]]","v":0},{"$f":"ROUND(Таблица1[[#This Row],[Оплачено случаев]]/Таблица1[[#This Row],[План ДВН, чел.]]*100,1)","v":{"$error":"#DIV/0!"}},null,null,0]
["Май","ДВН","МСЧ № 1 г. Калуги",0,0,0,{"$f":"Таблица1[[#This Row],[Оплачено случаев]]-Таблица1[[#This Row],[План ДВН, чел.]]","v":0},{"$f":"ROUND(Таблица1[[#This Row],[Оплачено случаев]]/Таблица1[[#This Row],[План ДВН, чел.]]*100,1)","v":{"$error":"#DIV/0!"}},null,null,0]
["Май","ДВН","МСЧ № 2 г. Калуги",0,0,0,{"$f":"Таблица1[[#This Row],[Оплачено случаев]]-Таблица1[[#This Row],[План ДВН, чел.]]","v":0},{"$f":"ROUND(Таблица1[[#This Row],[Оплачено случаев]]/Таблица1[[#This Row],[План ДВН, чел.]]*100,1)","v":{"$error":"#DIV/0!"}},null,null,0]
["Май","ДВН","МСЧ МВД",0,0,0,{"$f":"Таблица1[[#This Row],[Оплачено случаев]]-Таблица1[[#This Row],[План ДВН, чел.]]","v":0},{"$f":"ROUND(Таблица1[[#This Row],[Оплачено случаев]]/Таблица1[[#This Row],[План ДВН, чел.]]*100,1)","v":{"$error":"#DIV/0!"}},null,null,0]
["Май","ДВН","ЧУЗ \"Больница \"РЖД - Медицина\" ",0,0,0,{"$f":"Таблица1[[#This Row],[Оплачено случаев]]-Таблица1[[#This Row],[План ДВН, чел.]]","v":0},{"$f":"ROUND(Таблица1[[#This Row],[Оплачено случаев]]/Таблица1[[#This Row],[План ДВН, чел.]]*100,1)","v":{"$error":"#DIV/0!"}},null,null,0]
["Май","ДВН","КБ № 8 ФМБА",0,0,0,{"$f":"Таблица1[[#This Row],[Оплачено случаев]]-Таблица1[[#This Row],[План ДВН, чел.]]","v":0},{"$f":"ROUND(Таблица1[[#This Row],[Оплачено случаев]]/Таблица1[[#This Row],[План ДВН, чел.]]*100,1)","v":{"$error":"#DIV/0!"}},null,null,0]
["Май","ДВН","ЦРБ Бабынинского района",0,0,0,{"$f":"Таблица1[[#This Row],[Оплачено случаев]]-Таблица1[[#This Row],[План ДВН, чел.]]","v":0},{"$f":"ROUND(Таблица1[[#This Row],[Оплачено случаев]]/Таблица1[[#This Row],[План ДВН, чел.]]*100,1)","v":{"$error":"#DIV/0!"}},null,null,0]
["Май","ДВН","ЦРБ Боровского района",0,0,0,{"$f":"Таблица1[[#This Row],[Оплачено случаев]]-Таблица1[[#This Row],[План ДВН, чел.]]","v":0},{"$f":"ROUND(Таблица1[[#This Row],[Оплачено случаев]]/Таблица1[[#This Row],[План ДВН, чел.]]*100,1)","v":{"$error":"#DIV/0!"}},null,null,0]
["Май","ДВН","ЦРБ Жуковского района",0,0,0,{"$f":"Таблица1[[#This Row],[Оплачено случаев]]-Таблица1[[#This Row],[План ДВН, чел.]]","v":0},{"$f":"ROUND(Таблица1[[#This Row],[Оплачено случаев]]/Таблица1[[#This Row],[План ДВН, чел.]]*100,1)","v":{"$error":"#DIV/0!"}},null,null,0]
["Май","ДВН","ГП \"Город Кременки\"",0,0,0,{"$f":"Таблица1[[#This Row],[Оплачено случаев]]-Таблица1[[#This Row],[План ДВН, чел.]]","v":0},{"$f":"ROUND(Таблица1[[#This Row],[Оплачено случаев]]/Таблица1[[#This Row],[План ДВН, чел.]]*100,1)","v":{"$error":"#DIV/0!"}},null,null,0]
["Май","ДВН","ЦРБ Малоярославецкого района",0,0,0,{"$f":"Таблица1[[#This Row],[Оплачено случаев]]-Таблица1[[#This Row],[План ДВН, чел.]]","v":0},{"$f":"ROUND(Таблица1[[#This Row],[Оплачено случаев]]/Таблица1[[#This Row],[План ДВН, чел.]]*100,1)","v":{"$error":"#DIV/0!"}},null,null,0]
["Май","ДВН","ЦРБ  Тарусского района",0,0,0,{"$f":"Таблица1[[#This Row],[Оплачено случаев]]-Таблица1[[#This Row],[План ДВН, чел.]]","v":0},{"$f":"ROUND(Таблица1[[#This Row],[Оплачено случаев]]/Таблица1[[#This Row],[План ДВН, чел.]]*100,1)","v":{"$error":"#DIV/0!"}},null,null,0]
["Июнь","ДВН","ЦМБ № 1",{"$f":"AI4","v":0},{"$f":"AJ4","v":0},{"$f":"AK4","v":0},{"$f":"Таблица1[[#This Row],[Оплачено случаев]]-Таблица1[[#This Row],[План ДВН, чел.]]","v":0},{"$f":"ROUND(Таблица1[[#This Row],[Оплачено случаев]]/Таблица1[[#This Row],[План ДВН, чел.]]*100,1)","v":{"$error":"#DIV/0!"}},null,null,{"$f":"K83/1000","v":0}]
["Июнь","ДВН","ЦМБ № 2",0,0,0,{"$f":"Таблица1[[#This Row],[Оплачено случаев]]-Таблица1[[#This Row],[План ДВН, чел.]]","v":0},{"$f":"ROUND(Таблица1[[#This Row],[Оплачено случаев]]/Таблица1[[#This Row],[План ДВН, чел.]]*100,1)","v":{"$error":"#DIV/0!"}},null,null,{"$f":"#REF!/1000","v":{"$error":"#REF!"}}]
["Июнь","ДВН","ЦМБ № 3",0,0,0,{"$f":"Таблица1[[#This Row],[Оплачено случаев]]-Таблица1[[#This Row],[План ДВН, чел.]]","v":0},{"$f":"ROUND(Таблица1[[#This Row],[Оплачено случаев]]/Таблица1[[#This Row],[План ДВН, чел.]]*100,1)","v":{"$error":"#DIV/0!"}},null,null,{"$f":"K84/1000","v":0}]
["Июнь","ДВН","ЦМБ № 4",0,0,0,{"$f":"Таблица1[[#This Row],[Оплачено случаев]]-Таблица1[[#This Row],[План ДВН, чел.]]","v":0},{"$f":"ROUND(Таблица1[[#This Row],[Оплачено случаев]]/Таблица1[[#This Row],[План ДВН, чел.]]*100,1)","v":{"$error":"#DIV/0!"}},null,null,{"$error":"#REF!"}]
["Июнь","ДВН","ЦМБ № 5",0,0,0,{"$f":"Таблица1[[#This Row],[Оплачено случаев]]-Таблица1[[#This Row],[План ДВН, чел.]]","v":0},{"$f":"ROUND(Таблица1[[#This Row],[Оплачено случаев]]/Таблица1[[#This Row],[План ДВН, чел.]]*100,1)","v":{"$error":"#DIV/0!"}},null,null,0]
["Июнь","ДВН","ЦМБ № 6",0,0,0,{"$f":"Таблица1[[#This Row],[Оплачено случаев]]-Таблица1[[#This Row],[План ДВН, чел.]]","v":0},{"$f":"ROUND(Таблица1[[#This Row],[Оплачено случаев]]/Таблица1[[#This Row],[План ДВН, чел.]]*100,1)","v":{"$error":"#DIV/0!"}},null,null,{"$error":"#REF!"}]
["Июнь","ДВН","КГБ № 5",0,0,0,{"$f":"Таблица1[[#This Row],[Оплачено случаев]]-Таблица1[[#This Row],[План ДВН, чел.]]","v":0},{"$f":"ROUND(Таблица1[[#This Row],[Оплачено случаев]]/Таблица1[[#This Row],[План ДВН, чел.]]*100,1)","v":{"$error":"#DIV/0!"}},null,null,0]
["Июнь","ДВН","КГКБ № 4",0,0,0,{"$f":"Таблица1[[#This Row],[Оплачено случаев]]-Таблица1[[#This Row],[План ДВН, чел.]]","v":0},{"$f":"ROUND(Таблица1[[#This Row],[Оплачено случаев]]/Таблица1[[#This Row],[План ДВН, чел.]]*100,1)","v":{"$error":"#DIV/0!"}},null,null,{"$error":"#REF!"}]
["Июнь","ДВН","Городская поликлиника",0,0,0,{"$f":"Таблица1[[#This Row],[Оплачено случаев]]-Таблица1[[#This Row],[План ДВН, чел.]]","v":0},{"$f":"ROUND(Таблица1[[#This Row],[Оплачено случаев]]/Таблица1[[#This Row],[План ДВН, чел.]]*100,1)","v":{"$error":"#DIV/0!"}},null,null,0]
["Июнь","ДВН","МСЧ № 1 г. Калуги",0,0,0,{"$f":"Таблица1[[#This Row],[Оплачено случаев]]-Таблица1[[#This Row],[План ДВН, чел.]]","v":0},{"$f":"ROUND(Таблица1[[#This Row],[Оплачено случаев]]/Таблица1[[#This Row],[План ДВН, чел.]]*100,1)","v":{"$error":"#DIV/0!"}},null,null,0]
["Июнь","ДВН","МСЧ № 2 г. Калуги",0,0,0,{"$f":"Таблица1[[#This Row],[Оплачено случаев]]-Таблица1[[#This Row],[План ДВН, чел.]]","v":0},{"$f":"ROUND(Таблица1[[#This Row],[Оплачено случаев]]/Таблица1[[#This Row],[План ДВН, чел.]]*100,1)","v":{"$error":"#DIV/0!"}},null,null,0]
["Июнь","ДВН","МСЧ МВД",0,0,0,{"$f":"Таблица1[[#This Row],[Оплачено случаев]]-Таблица1[[#This Row],[План ДВН, чел.]]","v":0},{"$f":"ROUND(Таблица1[[#This Row],[Оплачено случаев]]/Таблица1[[#This Row],[План ДВН, чел.]]*100,1)","v":{"$error":"#DIV/0!"}},null,null,0]
["Июнь","ДВН","ЧУЗ \"Больница \"РЖД - Медицина\" ",0,0,0,{"$f":"Таблица1[[#This Row],[Оплачено случаев]]-Таблица1[[#This Row],[План ДВН, чел.]]","v":0},{"$f":"ROUND(Таблица1[[#This Row],[Оплачено случаев]]/Таблица1[[#This Row],[План ДВН, чел.]]*100,1)","v":{"$error":"#DIV/0!"}},null,null,0]
["Июнь","ДВН","КБ № 8 ФМБА",0,0,0,{"$f":"Таблица1[[#This Row],[Оплачено случаев]]-Таблица1[[#This Row],[План ДВН, чел.]]","v":0},{"$f":"ROUND(Таблица1[[#This Row],[Оплачено случаев]]/Таблица1[[#This Row],[План ДВН, чел.]]*100,1)","v":{"$error":"#DIV/0!"}},null,null,0]
["Июнь","ДВН","ЦРБ Бабынинского района",0,0,0,{"$f":"Таблица1[[#This Row],[Оплачено случаев]]-Таблица1[[#This Row],[План ДВН, чел.]]","v":0},{"$f":"ROUND(Таблица1[[#This Row],[Оплачено случаев]]/Таблица1[[#This Row],[План ДВН, чел.]]*100,1)","v":{"$error":"#DIV/0!"}},null,null,0]
["Июнь","ДВН","ЦРБ Боровского района",0,0,0,{"$f":"Таблица1[[#This Row],[Оплачено случаев]]-Таблица1[[#This Row],[План ДВН, чел.]]","v":0},{"$f":"ROUND(Таблица1[[#This Row],[Оплачено случаев]]/Таблица1[[#This Row],[План ДВН, чел.]]*100,1)","v":{"$error":"#DIV/0!"}},null,null,0]
["Июнь","ДВН","ЦРБ Жуковского района",0,0,0,{"$f":"Таблица1[[#This Row],[Оплачено случаев]]-Таблица1[[#This Row],[План ДВН, чел.]]","v":0},{"$f":"ROUND(Таблица1[[#This Row],[Оплачено случаев]]/Таблица1[[#This Row],[План ДВН, чел.]]*100,1)","v":{"$error":"#DIV/0!"}},null,null,0]
["Июнь","ДВН","ГП \"Город Кременки\"",0,0,0,{"$f":"Таблица1[[#This Row],[Оплачено случаев]]-Таблица1[[#This Row],[План ДВН, чел.]]","v":0},{"$f":"ROUND(Таблица1[[#This Row],[Оплачено случаев]]/Таблица1[[#This Row],[План ДВН, чел.]]*100,1)","v":{"$error":"#DIV/0!"}},null,null,0]
["Июнь","ДВН","ЦРБ Малоярославецкого района",0,0,0,{"$f":"Таблица1[[#This Row],[Оплачено случаев]]-Таблица1[[#This Row],[План ДВН, чел.]]","v":0},{"$f":"ROUND(Таблица1[[#This Row],[Оплачено случаев]]/Таблица1[[#This Row],[План ДВН, чел.]]*100,1)","v":{"$error":"#DIV/0!"}},null,null,0]
["Июнь","ДВН","ЦРБ  Тарусского района",0,0,0,{"$f":"Таблица1[[#This Row],[Оплачено случаев]]-Таблица1[[#This Row],[План ДВН, чел.]]","v":0},{"$f":"ROUND(Таблица1[[#This Row],[Оплачено случаев]]/Таблица1[[#This Row],[План ДВН, чел.]]*100,1)","v":{"$error":"#DIV/0!"}},null,null,0]
["Июль","ДВН","ЦМБ № 1",{"$f":"AN4","v":0},{"$f":"AO4","v":0},{"$f":"AP4","v":0},{"$f":"Таблица1[[#This Row],[Оплачено случаев]]-Таблица1[[#This Row],[План ДВН, чел.]]","v":0},{"$f":"ROUND(Таблица1[[#This Row],[Оплачено случаев]]/Таблица1[[#This Row],[План ДВН, чел.]]*100,1)","v":{"$error":"#DIV/0!"}}]
["Июль","ДВН","ЦМБ № 2",0,0,0,{"$f":"Таблица1[[#This Row],[Оплачено случаев]]-Таблица1[[#This Row],[План ДВН, чел.]]","v":0},{"$f":"ROUND(Таблица1[[#This Row],[Оплачено случаев]]/Таблица1[[#This Row],[План ДВН, чел.]]*100,1)","v":{"$error":"#DIV/0!"}}]
["Июль","ДВН","ЦМБ № 3",0,0,0,{"$f":"Таблица1[[#This Row],[Оплачено случаев]]-Таблица1[[#This Row],[План ДВН, чел.]]","v":0},{"$f":"ROUND(Таблица1[[#This Row],[Оплачено случаев]]/Таблица1[[#This Row],[План ДВН, чел.]]*100,1)","v":{"$error":"#DIV/0!"}}]
["Июль","ДВН","ЦМБ № 4",0,0,0,{"$f":"Таблица1[[#This Row],[Оплачено случаев]]-Таблица1[[#This Row],[План ДВН, чел.]]","v":0},{"$f":"ROUND(Таблица1[[#This Row],[Оплачено случаев]]/Таблица1[[#This Row],[План ДВН, чел.]]*100,1)","v":{"$error":"#DIV/0!"}}]
["Июль","ДВН","ЦМБ № 5",0,0,0,{"$f":"Таблица1[[#This Row],[Оплачено случаев]]-Таблица1[[#This Row],[План ДВН, чел.]]","v":0},{"$f":"ROUND(Таблица1[[#This Row],[Оплачено случаев]]/Таблица1[[#This Row],[План ДВН, чел.]]*100,1)","v":{"$error":"#DIV/0!"}}]
["Июль","ДВН","ЦМБ № 6",0,0,0,{"$f":"Таблица1[[#This Row],[Оплачено случаев]]-Таблица1[[#This Row],[План ДВН, чел.]]","v":0},{"$f":"ROUND(Таблица1[[#This Row],[Оплачено случаев]]/Таблица1[[#This Row],[План ДВН, чел.]]*100,1)","v":{"$error":"#DIV/0!"}}]
["Июль","ДВН","КГБ № 5",0,0,0,{"$f":"Таблица1[[#This Row],[Оплачено случаев]]-Таблица1[[#This Row],[План ДВН, чел.]]","v":0},{"$f":"ROUND(Таблица1[[#This Row],[Оплачено случаев]]/Таблица1[[#This Row],[План ДВН, чел.]]*100,1)","v":{"$error":"#DIV/0!"}}]
["Июль","ДВН","КГКБ № 4",0,0,0,{"$f":"Таблица1[[#This Row],[Оплачено случаев]]-Таблица1[[#This Row],[План ДВН, чел.]]","v":0},{"$f":"ROUND(Таблица1[[#This Row],[Оплачено случаев]]/Таблица1[[#This Row],[План ДВН, чел.]]*100,1)","v":{"$error":"#DIV/0!"}}]
["Июль","ДВН","Городская поликлиника",0,0,0,{"$f":"Таблица1[[#This Row],[Оплачено случаев]]-Таблица1[[#This Row],[План ДВН, чел.]]","v":0},{"$f":"ROUND(Таблица1[[#This Row],[Оплачено случаев]]/Таблица1[[#This Row],[План ДВН, чел.]]*100,1)","v":{"$error":"#DIV/0!"}}]
["Июль","ДВН","МСЧ № 1 г. Калуги",0,0,0,{"$f":"Таблица1[[#This Row],[Оплачено случаев]]-Таблица1[[#This Row],[План ДВН, чел.]]","v":0},{"$f":"ROUND(Таблица1[[#This Row],[Оплачено случаев]]/Таблица1[[#This Row],[План ДВН, чел.]]*100,1)","v":{"$error":"#DIV/0!"}}]
["Июль","ДВН","МСЧ № 2 г. Калуги",0,0,0,{"$f":"Таблица1[[#This Row],[Оплачено случаев]]-Таблица1[[#This Row],[План ДВН, чел.]]","v":0},{"$f":"ROUND(Таблица1[[#This Row],[Оплачено случаев]]/Таблица1[[#This Row],[План ДВН, чел.]]*100,1)","v":{"$error":"#DIV/0!"}}]
["Июль","ДВН","МСЧ МВД",0,0,0,{"$f":"Таблица1[[#This Row],[Оплачено случаев]]-Таблица1[[#This Row],[План ДВН, чел.]]","v":0},{"$f":"ROUND(Таблица1[[#This Row],[Оплачено случаев]]/Таблица1[[#This Row],[План ДВН, чел.]]*100,1)","v":{"$error":"#DIV/0!"}}]
["Июль","ДВН","ЧУЗ \"Больница \"РЖД - Медицина\" ",0,0,0,{"$f":"Таблица1[[#This Row],[Оплачено случаев]]-Таблица1[[#This Row],[План ДВН, чел.]]","v":0},{"$f":"ROUND(Таблица1[[#This Row],[Оплачено случаев]]/Таблица1[[#This Row],[План ДВН, чел.]]*100,1)","v":{"$error":"#DIV/0!"}}]
["Июль","ДВН","КБ № 8 ФМБА",0,0,0,{"$f":"Таблица1[[#This Row],[Оплачено случаев]]-Таблица1[[#This Row],[План ДВН, чел.]]","v":0},{"$f":"ROUND(Таблица1[[#This Row],[Оплачено случаев]]/Таблица1[[#This Row],[План ДВН, чел.]]*100,1)","v":{"$error":"#DIV/0!"}}]
["Июль","ДВН","ЦРБ Бабынинского района",0,0,0,{"$f":"Таблица1[[#This Row],[Оплачено случаев]]-Таблица1[[#This Row],[План ДВН, чел.]]","v":0},{"$f":"ROUND(Таблица1[[#This Row],[Оплачено случаев]]/Таблица1[[#This Row],[План ДВН, чел.]]*100,1)","v":{"$error":"#DIV/0!"}}]
["Июль","ДВН","ЦРБ Боровского района",0,0,0,{"$f":"Таблица1[[#This Row],[Оплачено случаев]]-Таблица1[[#This Row],[План ДВН, чел.]]","v":0},{"$f":"ROUND(Таблица1[[#This Row],[Оплачено случаев]]/Таблица1[[#This Row],[План ДВН, чел.]]*100,1)","v":{"$error":"#DIV/0!"}}]
["Июль","ДВН","ЦРБ Жуковского района",0,0,0,{"$f":"Таблица1[[#This Row],[Оплачено случаев]]-Таблица1[[#This Row],[План ДВН, чел.]]","v":0},{"$f":"ROUND(Таблица1[[#This Row],[Оплачено случаев]]/Таблица1[[#This Row],[План ДВН, чел.]]*100,1)","v":{"$error":"#DIV/0!"}}]
["Июль","ДВН","ГП \"Город Кременки\"",0,0,0,{"$f":"Таблица1[[#This Row],[Оплачено случаев]]-Таблица1[[#This Row],[План ДВН, чел.]]","v":0},{"$f":"ROUND(Таблица1[[#This Row],[Оплачено случаев]]/Таблица1[[#This Row],[План ДВН, чел.]]*100,1)","v":{"$error":"#DIV/0!"}}]
["Июль","ДВН","ЦРБ Малоярославецкого района",0,0,0,{"$f":"Таблица1[[#This Row],[Оплачено случаев]]-Таблица1[[#This Row],[План ДВН, чел.]]","v":0},{"$f":"ROUND(Таблица1[[#This Row],[Оплачено случаев]]/Таблица1[[#This Row],[План ДВН, чел.]]*100,1)","v":{"$error":"#DIV/0!"}}]
["Июль","ДВН","ЦРБ  Тарусского района",0,0,0,{"$f":"Таблица1[[#This Row],[Оплачено случаев]]-Таблица1[[#This Row],[План ДВН, чел.]]","v":0},{"$f":"ROUND(Таблица1[[#This Row],[Оплачено случаев]]/Таблица1[[#This Row],[План ДВН, чел.]]*100,1)","v":{"$error":"#DIV/0!"}}]
["Август","ДВН","ЦМБ № 1",{"$f":"AS4","v":0},{"$f":"AT4","v":0},{"$f":"AU4","v":0},{"$f":"Таблица1[[#This Row],[Оплачено случаев]]-Таблица1[[#This Row],[План ДВН, чел.]]","v":0},{"$f":"ROUND(Таблица1[[#This Row],[Оплачено случаев]]/Таблица1[[#This Row],[План ДВН, чел.]]*100,1)","v":{"$error":"#DIV/0!"}}]
["Август","ДВН","ЦМБ № 2",0,0,0,{"$f":"Таблица1[[#This Row],[Оплачено случаев]]-Таблица1[[#This Row],[План ДВН, чел.]]","v":0},{"$f":"ROUND(Таблица1[[#This Row],[Оплачено случаев]]/Таблица1[[#This Row],[План ДВН, чел.]]*100,1)","v":{"$error":"#DIV/0!"}}]
["Август","ДВН","ЦМБ № 3",0,0,0,{"$f":"Таблица1[[#This Row],[Оплачено случаев]]-Таблица1[[#This Row],[План ДВН, чел.]]","v":0},{"$f":"ROUND(Таблица1[[#This Row],[Оплачено случаев]]/Таблица1[[#This Row],[План ДВН, чел.]]*100,1)","v":{"$error":"#DIV/0!"}}]
["Август","ДВН","ЦМБ № 4",0,0,0,{"$f":"Таблица1[[#This Row],[Оплачено случаев]]-Таблица1[[#This Row],[План ДВН, чел.]]","v":0},{"$f":"ROUND(Таблица1[[#This Row],[Оплачено случаев]]/Таблица1[[#This Row],[План ДВН, чел.]]*100,1)","v":{"$error":"#DIV/0!"}}]
["Август","ДВН","ЦМБ № 5",0,0,0,{"$f":"Таблица1[[#This Row],[Оплачено случаев]]-Таблица1[[#This Row],[План ДВН, чел.]]","v":0},{"$f":"ROUND(Таблица1[[#This Row],[Оплачено случаев]]/Таблица1[[#This Row],[План ДВН, чел.]]*100,1)","v":{"$error":"#DIV/0!"}}]
["Август","ДВН","ЦМБ № 6",0,0,0,{"$f":"Таблица1[[#This Row],[Оплачено случаев]]-Таблица1[[#This Row],[План ДВН, чел.]]","v":0},{"$f":"ROUND(Таблица1[[#This Row],[Оплачено случаев]]/Таблица1[[#This Row],[План ДВН, чел.]]*100,1)","v":{"$error":"#DIV/0!"}}]
["Август","ДВН","КГБ № 5",0,0,0,{"$f":"Таблица1[[#This Row],[Оплачено случаев]]-Таблица1[[#This Row],[План ДВН, чел.]]","v":0},{"$f":"ROUND(Таблица1[[#This Row],[Оплачено случаев]]/Таблица1[[#This Row],[План ДВН, чел.]]*100,1)","v":{"$error":"#DIV/0!"}}]
["Август","ДВН","КГКБ № 4",0,0,0,{"$f":"Таблица1[[#This Row],[Оплачено случаев]]-Таблица1[[#This Row],[План ДВН, чел.]]","v":0},{"$f":"ROUND(Таблица1[[#This Row],[Оплачено случаев]]/Таблица1[[#This Row],[План ДВН, чел.]]*100,1)","v":{"$error":"#DIV/0!"}}]
["Август","ДВН","Городская поликлиника",0,0,0,{"$f":"Таблица1[[#This Row],[Оплачено случаев]]-Таблица1[[#This Row],[План ДВН, чел.]]","v":0},{"$f":"ROUND(Таблица1[[#This Row],[Оплачено случаев]]/Таблица1[[#This Row],[План ДВН, чел.]]*100,1)","v":{"$error":"#DIV/0!"}}]
["Август","ДВН","МСЧ № 1 г. Калуги",0,0,0,{"$f":"Таблица1[[#This Row],[Оплачено случаев]]-Таблица1[[#This Row],[План ДВН, чел.]]","v":0},{"$f":"ROUND(Таблица1[[#This Row],[Оплачено случаев]]/Таблица1[[#This Row],[План ДВН, чел.]]*100,1)","v":{"$error":"#DIV/0!"}}]
["Август","ДВН","МСЧ № 2 г. Калуги",0,0,0,{"$f":"Таблица1[[#This Row],[Оплачено случаев]]-Таблица1[[#This Row],[План ДВН, чел.]]","v":0},{"$f":"ROUND(Таблица1[[#This Row],[Оплачено случаев]]/Таблица1[[#This Row],[План ДВН, чел.]]*100,1)","v":{"$error":"#DIV/0!"}}]
["Август","ДВН","МСЧ МВД",0,0,0,{"$f":"Таблица1[[#This Row],[Оплачено случаев]]-Таблица1[[#This Row],[План ДВН, чел.]]","v":0},{"$f":"ROUND(Таблица1[[#This Row],[Оплачено случаев]]/Таблица1[[#This Row],[План ДВН, чел.]]*100,1)","v":{"$error":"#DIV/0!"}}]
["Август","ДВН","ЧУЗ \"Больница \"РЖД - Медицина\" ",0,0,0,{"$f":"Таблица1[[#This Row],[Оплачено случаев]]-Таблица1[[#This Row],[План ДВН, чел.]]","v":0},{"$f":"ROUND(Таблица1[[#This Row],[Оплачено случаев]]/Таблица1[[#This Row],[План ДВН, чел.]]*100,1)","v":{"$error":"#DIV/0!"}}]
["Август","ДВН","КБ № 8 ФМБА",0,0,0,{"$f":"Таблица1[[#This Row],[Оплачено случаев]]-Таблица1[[#This Row],[План ДВН, чел.]]","v":0},{"$f":"ROUND(Таблица1[[#This Row],[Оплачено случаев]]/Таблица1[[#This Row],[План ДВН, чел.]]*100,1)","v":{"$error":"#DIV/0!"}}]
["Август","ДВН","ЦРБ Бабынинского района",0,0,0,{"$f":"Таблица1[[#This Row],[Оплачено случаев]]-Таблица1[[#This Row],[План ДВН, чел.]]","v":0},{"$f":"ROUND(Таблица1[[#This Row],[Оплачено случаев]]/Таблица1[[#This Row],[План ДВН, чел.]]*100,1)","v":{"$error":"#DIV/0!"}}]
["Август","ДВН","ЦРБ Боровского района",0,0,0,{"$f":"Таблица1[[#This Row],[Оплачено случаев]]-Таблица1[[#This Row],[План ДВН, чел.]]","v":0},{"$f":"ROUND(Таблица1[[#This Row],[Оплачено случаев]]/Таблица1[[#This Row],[План ДВН, чел.]]*100,1)","v":{"$error":"#DIV/0!"}}]
["Август","ДВН","ЦРБ Жуковского района",0,0,0,{"$f":"Таблица1[[#This Row],[Оплачено случаев]]-Таблица1[[#This Row],[План ДВН, чел.]]","v":0},{"$f":"ROUND(Таблица1[[#This Row],[Оплачено случаев]]/Таблица1[[#This Row],[План ДВН, чел.]]*100,1)","v":{"$error":"#DIV/0!"}}]
["Август","ДВН","ГП \"Город Кременки\"",0,0,0,{"$f":"Таблица1[[#This Row],[Оплачено случаев]]-Таблица1[[#This Row],[План ДВН, чел.]]","v":0},{"$f":"ROUND(Таблица1[[#This Row],[Оплачено случаев]]/Таблица1[[#This Row],[План ДВН, чел.]]*100,1)","v":{"$error":"#DIV/0!"}}]
["Август","ДВН","ЦРБ Малоярославецкого района",0,0,0,{"$f":"Таблица1[[#This Row],[Оплачено случаев]]-Таблица1[[#This Row],[План ДВН, чел.]]","v":0},{"$f":"ROUND(Таблица1[[#This Row],[Оплачено случаев]]/Таблица1[[#This Row],[План ДВН, чел.]]*100,1)","v":{"$error":"#DIV/0!"}}]
["Август","ДВН","ЦРБ  Тарусского района",0,0,0,{"$f":"Таблица1[[#This Row],[Оплачено случаев]]-Таблица1[[#This Row],[План ДВН, чел.]]","v":0},{"$f":"ROUND(Таблица1[[#This Row],[Оплачено случаев]]/Таблица1[[#This Row],[План ДВН, чел.]]*100,1)","v":{"$error":"#DIV/0!"}}]
["Сентябрь","ДВН","ЦМБ № 1",{"$f":"AX4","v":0},{"$f":"AY4","v":0},{"$f":"AZ4","v":0},{"$f":"Таблица1[[#This Row],[Оплачено случаев]]-Таблица1[[#This Row],[План ДВН, чел.]]","v":0},{"$f":"ROUND(Таблица1[[#This Row],[Оплачено случаев]]/Таблица1[[#This Row],[План ДВН, чел.]]*100,1)","v":{"$error":"#DIV/0!"}}]
["Сентябрь","ДВН","ЦМБ № 2",0,0,0,{"$f":"Таблица1[[#This Row],[Оплачено случаев]]-Таблица1[[#This Row],[План ДВН, чел.]]","v":0},{"$f":"ROUND(Таблица1[[#This Row],[Оплачено случаев]]/Таблица1[[#This Row],[План ДВН, чел.]]*100,1)","v":{"$error":"#DIV/0!"}}]
["Сентябрь","ДВН","ЦМБ № 3",0,0,0,{"$f":"Таблица1[[#This Row],[Оплачено случаев]]-Таблица1[[#This Row],[План ДВН, чел.]]","v":0},{"$f":"ROUND(Таблица1[[#This Row],[Оплачено случаев]]/Таблица1[[#This Row],[План ДВН, чел.]]*100,1)","v":{"$error":"#DIV/0!"}}]
["Сентябрь","ДВН","ЦМБ № 4",0,0,0,{"$f":"Таблица1[[#This Row],[Оплачено случаев]]-Таблица1[[#This Row],[План ДВН, чел.]]","v":0},{"$f":"ROUND(Таблица1[[#This Row],[Оплачено случаев]]/Таблица1[[#This Row],[План ДВН, чел.]]*100,1)","v":{"$error":"#DIV/0!"}}]
["Сентябрь","ДВН","ЦМБ № 5",0,0,0,{"$f":"Таблица1[[#This Row],[Оплачено случаев]]-Таблица1[[#This Row],[План ДВН, чел.]]","v":0},{"$f":"ROUND(Таблица1[[#This Row],[Оплачено случаев]]/Таблица1[[#This Row],[План ДВН, чел.]]*100,1)","v":{"$error":"#DIV/0!"}}]
["Сентябрь","ДВН","ЦМБ № 6",0,0,0,{"$f":"Таблица1[[#This Row],[Оплачено случаев]]-Таблица1[[#This Row],[План ДВН, чел.]]","v":0},{"$f":"ROUND(Таблица1[[#This Row],[Оплачено случаев]]/Таблица1[[#This Row],[План ДВН, чел.]]*100,1)","v":{"$error":"#DIV/0!"}}]
["Сентябрь","ДВН","КГБ № 5",0,0,0,{"$f":"Таблица1[[#This Row],[Оплачено случаев]]-Таблица1[[#This Row],[План ДВН, чел.]]","v":0},{"$f":"ROUND(Таблица1[[#This Row],[Оплачено случаев]]/Таблица1[[#This Row],[План ДВН, чел.]]*100,1)","v":{"$error":"#DIV/0!"}}]
["Сентябрь","ДВН","КГКБ № 4",0,0,0,{"$f":"Таблица1[[#This Row],[Оплачено случаев]]-Таблица1[[#This Row],[План ДВН, чел.]]","v":0},{"$f":"ROUND(Таблица1[[#This Row],[Оплачено случаев]]/Таблица1[[#This Row],[План ДВН, чел.]]*100,1)","v":{"$error":"#DIV/0!"}}]
["Сентябрь","ДВН","Городская поликлиника",0,0,0,{"$f":"Таблица1[[#This Row],[Оплачено случаев]]-Таблица1[[#This Row],[План ДВН, чел.]]","v":0},{"$f":"ROUND(Таблица1[[#This Row],[Оплачено случаев]]/Таблица1[[#This Row],[План ДВН, чел.]]*100,1)","v":{"$error":"#DIV/0!"}}]
["Сентябрь","ДВН","МСЧ № 1 г. Калуги",0,0,0,{"$f":"Таблица1[[#This Row],[Оплачено случаев]]-Таблица1[[#This Row],[План ДВН, чел.]]","v":0},{"$f":"ROUND(Таблица1[[#This Row],[Оплачено случаев]]/Таблица1[[#This Row],[План ДВН, чел.]]*100,1)","v":{"$error":"#DIV/0!"}}]
["Сентябрь","ДВН","МСЧ № 2 г. Калуги",0,0,0,{"$f":"Таблица1[[#This Row],[Оплачено случаев]]-Таблица1[[#This Row],[План ДВН, чел.]]","v":0},{"$f":"ROUND(Таблица1[[#This Row],[Оплачено случаев]]/Таблица1[[#This Row],[План ДВН, чел.]]*100,1)","v":{"$error":"#DIV/0!"}}]
["Сентябрь","ДВН","МСЧ МВД",0,0,0,{"$f":"Таблица1[[#This Row],[Оплачено случаев]]-Таблица1[[#This Row],[План ДВН, чел.]]","v":0},{"$f":"ROUND(Таблица1[[#This Row],[Оплачено случаев]]/Таблица1[[#This Row],[План ДВН, чел.]]*100,1)","v":{"$error":"#DIV/0!"}}]
["Сентябрь","ДВН","ЧУЗ \"Больница \"РЖД - Медицина\" ",0,0,0,{"$f":"Таблица1[[#This Row],[Оплачено случаев]]-Таблица1[[#This Row],[План ДВН, чел.]]","v":0},{"$f":"ROUND(Таблица1[[#This Row],[Оплачено случаев]]/Таблица1[[#This Row],[План ДВН, чел.]]*100,1)","v":{"$error":"#DIV/0!"}}]
["Сентябрь","ДВН","КБ № 8 ФМБА",0,0,0,{"$f":"Таблица1[[#This Row],[Оплачено случаев]]-Таблица1[[#This Row],[План ДВН, чел.]]","v":0},{"$f":"ROUND(Таблица1[[#This Row],[Оплачено случаев]]/Таблица1[[#This Row],[План ДВН, чел.]]*100,1)","v":{"$error":"#DIV/0!"}}]
["Сентябрь","ДВН","ЦРБ Бабынинского района",0,0,0,{"$f":"Таблица1[[#This Row],[Оплачено случаев]]-Таблица1[[#This Row],[План ДВН, чел.]]","v":0},{"$f":"ROUND(Таблица1[[#This Row],[Оплачено случаев]]/Таблица1[[#This Row],[План ДВН, чел.]]*100,1)","v":{"$error":"#DIV/0!"}}]
["Сентябрь","ДВН","ЦРБ Боровского района",0,0,0,{"$f":"Таблица1[[#This Row],[Оплачено случаев]]-Таблица1[[#This Row],[План ДВН, чел.]]","v":0},{"$f":"ROUND(Таблица1[[#This Row],[Оплачено случаев]]/Таблица1[[#This Row],[План ДВН, чел.]]*100,1)","v":{"$error":"#DIV/0!"}}]
["Сентябрь","ДВН","ЦРБ Жуковского района",0,0,0,{"$f":"Таблица1[[#This Row],[Оплачено случаев]]-Таблица1[[#This Row],[План ДВН, чел.]]","v":0},{"$f":"ROUND(Таблица1[[#This Row],[Оплачено случаев]]/Таблица1[[#This Row],[План ДВН, чел.]]*100,1)","v":{"$error":"#DIV/0!"}}]
["Сентябрь","ДВН","ГП \"Город Кременки\"",0,0,0,{"$f":"Таблица1[[#This Row],[Оплачено случаев]]-Таблица1[[#This Row],[План ДВН, чел.]]","v":0},{"$f":"ROUND(Таблица1[[#This Row],[Оплачено случаев]]/Таблица1[[#This Row],[План ДВН, чел.]]*100,1)","v":{"$error":"#DIV/0!"}}]
["Сентябрь","ДВН","ЦРБ Малоярославецкого района",0,0,0,{"$f":"Таблица1[[#This Row],[Оплачено случаев]]-Таблица1[[#This Row],[План ДВН, чел.]]","v":0},{"$f":"ROUND(Таблица1[[#This Row],[Оплачено случаев]]/Таблица1[[#This Row],[План ДВН, чел.]]*100,1)","v":{"$error":"#DIV/0!"}}]
["Сентябрь","ДВН","ЦРБ  Тарусского района",0,0,0,{"$f":"Таблица1[[#This Row],[Оплачено случаев]]-Таблица1[[#This Row],[План ДВН, чел.]]","v":0},{"$f":"ROUND(Таблица1[[#This Row],[Оплачено случаев]]/Таблица1[[#This Row],[План ДВН, чел.]]*100,1)","v":{"$error":"#DIV/0!"}}]
["Октябрь","ДВН","ЦМБ № 1",{"$f":"BC4","v":0},{"$f":"BD4","v":0},{"$f":"BE4","v":0},{"$f":"Таблица1[[#This Row],[Оплачено случаев]]-Таблица1[[#This Row],[План ДВН, чел.]]","v":0},{"$f":"ROUND(Таблица1[[#This Row],[Оплачено случаев]]/Таблица1[[#This Row],[План ДВН, чел.]]*100,1)","v":{"$error":"#DIV/0!"}}]
["Октябрь","ДВН","ЦМБ № 2",0,0,0,{"$f":"Таблица1[[#This Row],[Оплачено случаев]]-Таблица1[[#This Row],[План ДВН, чел.]]","v":0},{"$f":"ROUND(Таблица1[[#This Row],[Оплачено случаев]]/Таблица1[[#This Row],[План ДВН, чел.]]*100,1)","v":{"$error":"#DIV/0!"}}]
["Октябрь","ДВН","ЦМБ № 3",0,0,0,{"$f":"Таблица1[[#This Row],[Оплачено случаев]]-Таблица1[[#This Row],[План ДВН, чел.]]","v":0},{"$f":"ROUND(Таблица1[[#This Row],[Оплачено случаев]]/Таблица1[[#This Row],[План ДВН, чел.]]*100,1)","v":{"$error":"#DIV/0!"}}]
["Октябрь","ДВН","ЦМБ № 4",0,0,0,{"$f":"Таблица1[[#This Row],[Оплачено случаев]]-Таблица1[[#This Row],[План ДВН, чел.]]","v":0},{"$f":"ROUND(Таблица1[[#This Row],[Оплачено случаев]]/Таблица1[[#This Row],[План ДВН, чел.]]*100,1)","v":{"$error":"#DIV/0!"}}]
["Октябрь","ДВН","ЦМБ № 5",0,0,0,{"$f":"Таблица1[[#This Row],[Оплачено случаев]]-Таблица1[[#This Row],[План ДВН, чел.]]","v":0},{"$f":"ROUND(Таблица1[[#This Row],[Оплачено случаев]]/Таблица1[[#This Row],[План ДВН, чел.]]*100,1)","v":{"$error":"#DIV/0!"}}]
["Октябрь","ДВН","ЦМБ № 6",0,0,0,{"$f":"Таблица1[[#This Row],[Оплачено случаев]]-Таблица1[[#This Row],[План ДВН, чел.]]","v":0},{"$f":"ROUND(Таблица1[[#This Row],[Оплачено случаев]]/Таблица1[[#This Row],[План ДВН, чел.]]*100,1)","v":{"$error":"#DIV/0!"}}]
["Октябрь","ДВН","КГБ № 5",0,0,0,{"$f":"Таблица1[[#This Row],[Оплачено случаев]]-Таблица1[[#This Row],[План ДВН, чел.]]","v":0},{"$f":"ROUND(Таблица1[[#This Row],[Оплачено случаев]]/Таблица1[[#This Row],[План ДВН, чел.]]*100,1)","v":{"$error":"#DIV/0!"}}]
["Октябрь","ДВН","КГКБ № 4",0,0,0,{"$f":"Таблица1[[#This Row],[Оплачено случаев]]-Таблица1[[#This Row],[План ДВН, чел.]]","v":0},{"$f":"ROUND(Таблица1[[#This Row],[Оплачено случаев]]/Таблица1[[#This Row],[План ДВН, чел.]]*100,1)","v":{"$error":"#DIV/0!"}}]
["Октябрь","ДВН","Городская поликлиника",0,0,0,{"$f":"Таблица1[[#This Row],[Оплачено случаев]]-Таблица1[[#This Row],[План ДВН, чел.]]","v":0},{"$f":"ROUND(Таблица1[[#This Row],[Оплачено случаев]]/Таблица1[[#This Row],[План ДВН, чел.]]*100,1)","v":{"$error":"#DIV/0!"}}]
["Октябрь","ДВН","МСЧ № 1 г. Калуги",0,0,0,{"$f":"Таблица1[[#This Row],[Оплачено случаев]]-Таблица1[[#This Row],[План ДВН, чел.]]","v":0},{"$f":"ROUND(Таблица1[[#This Row],[Оплачено случаев]]/Таблица1[[#This Row],[План ДВН, чел.]]*100,1)","v":{"$error":"#DIV/0!"}}]
["Октябрь","ДВН","МСЧ № 2 г. Калуги",0,0,0,{"$f":"Таблица1[[#This Row],[Оплачено случаев]]-Таблица1[[#This Row],[План ДВН, чел.]]","v":0},{"$f":"ROUND(Таблица1[[#This Row],[Оплачено случаев]]/Таблица1[[#This Row],[План ДВН, чел.]]*100,1)","v":{"$error":"#DIV/0!"}}]
["Октябрь","ДВН","МСЧ МВД",0,0,0,{"$f":"Таблица1[[#This Row],[Оплачено случаев]]-Таблица1[[#This Row],[План ДВН, чел.]]","v":0},{"$f":"ROUND(Таблица1[[#This Row],[Оплачено случаев]]/Таблица1[[#This Row],[План ДВН, чел.]]*100,1)","v":{"$error":"#DIV/0!"}}]
["Октябрь","ДВН","ЧУЗ \"Больница \"РЖД - Медицина\" ",0,0,0,{"$f":"Таблица1[[#This Row],[Оплачено случаев]]-Таблица1[[#This Row],[План ДВН, чел.]]","v":0},{"$f":"ROUND(Таблица1[[#This Row],[Оплачено случаев]]/Таблица1[[#This Row],[План ДВН, чел.]]*100,1)","v":{"$error":"#DIV/0!"}}]
["Октябрь","ДВН","КБ № 8 ФМБА",0,0,0,{"$f":"Таблица1[[#This Row],[Оплачено случаев]]-Таблица1[[#This Row],[План ДВН, чел.]]","v":0},{"$f":"ROUND(Таблица1[[#This Row],[Оплачено случаев]]/Таблица1[[#This Row],[План ДВН, чел.]]*100,1)","v":{"$error":"#DIV/0!"}}]
["Октябрь","ДВН","ЦРБ Бабынинского района",0,0,0,{"$f":"Таблица1[[#This Row],[Оплачено случаев]]-Таблица1[[#This Row],[План ДВН, чел.]]","v":0},{"$f":"ROUND(Таблица1[[#This Row],[Оплачено случаев]]/Таблица1[[#This Row],[План ДВН, чел.]]*100,1)","v":{"$error":"#DIV/0!"}}]
["Октябрь","ДВН","ЦРБ Боровского района",0,0,0,{"$f":"Таблица1[[#This Row],[Оплачено случаев]]-Таблица1[[#This Row],[План ДВН, чел.]]","v":0},{"$f":"ROUND(Таблица1[[#This Row],[Оплачено случаев]]/Таблица1[[#This Row],[План ДВН, чел.]]*100,1)","v":{"$error":"#DIV/0!"}}]
["Октябрь","ДВН","ЦРБ Жуковского района",0,0,0,{"$f":"Таблица1[[#This Row],[Оплачено случаев]]-Таблица1[[#This Row],[План ДВН, чел.]]","v":0},{"$f":"ROUND(Таблица1[[#This Row],[Оплачено случаев]]/Таблица1[[#This Row],[План ДВН, чел.]]*100,1)","v":{"$error":"#DIV/0!"}}]
["Октябрь","ДВН","ГП \"Город Кременки\"",0,0,0,{"$f":"Таблица1[[#This Row],[Оплачено случаев]]-Таблица1[[#This Row],[План ДВН, чел.]]","v":0},{"$f":"ROUND(Таблица1[[#This Row],[Оплачено случаев]]/Таблица1[[#This Row],[План ДВН, чел.]]*100,1)","v":{"$error":"#DIV/0!"}}]
["Октябрь","ДВН","ЦРБ Малоярославецкого района",0,0,0,{"$f":"Таблица1[[#This Row],[Оплачено случаев]]-Таблица1[[#This Row],[План ДВН, чел.]]","v":0},{"$f":"ROUND(Таблица1[[#This Row],[Оплачено случаев]]/Таблица1[[#This Row],[План ДВН, чел.]]*100,1)","v":{"$error":"#DIV/0!"}}]
["Октябрь","ДВН","ЦРБ  Тарусского района",0,0,0,{"$f":"Таблица1[[#This Row],[Оплачено случаев]]-Таблица1[[#This Row],[План ДВН, чел.]]","v":0},{"$f":"ROUND(Таблица1[[#This Row],[Оплачено случаев]]/Таблица1[[#This Row],[План ДВН, чел.]]*100,1)","v":{"$error":"#DIV/0!"}}]
["Ноябрь","ДВН","ЦМБ № 1",{"$f":"BH4","v":0},{"$f":"BI4","v":0},{"$f":"BJ4","v":0},{"$f":"Таблица1[[#This Row],[Оплачено случаев]]-Таблица1[[#This Row],[План ДВН, чел.]]","v":0},{"$f":"ROUND(Таблица1[[#This Row],[Оплачено случаев]]/Таблица1[[#This Row],[План ДВН, чел.]]*100,1)","v":{"$error":"#DIV/0!"}}]
["Ноябрь","ДВН","ЦМБ № 2",0,0,0,{"$f":"Таблица1[[#This Row],[Оплачено случаев]]-Таблица1[[#This Row],[План ДВН, чел.]]","v":0},{"$f":"ROUND(Таблица1[[#This Row],[Оплачено случаев]]/Таблица1[[#This Row],[План ДВН, чел.]]*100,1)","v":{"$error":"#DIV/0!"}}]
["Ноябрь","ДВН","ЦМБ № 3",0,0,0,{"$f":"Таблица1[[#This Row],[Оплачено случаев]]-Таблица1[[#This Row],[План ДВН, чел.]]","v":0},{"$f":"ROUND(Таблица1[[#This Row],[Оплачено случаев]]/Таблица1[[#This Row],[План ДВН, чел.]]*100,1)","v":{"$error":"#DIV/0!"}}]
["Ноябрь","ДВН","ЦМБ № 4",0,0,0,{"$f":"Таблица1[[#This Row],[Оплачено случаев]]-Таблица1[[#This Row],[План ДВН, чел.]]","v":0},{"$f":"ROUND(Таблица1[[#This Row],[Оплачено случаев]]/Таблица1[[#This Row],[План ДВН, чел.]]*100,1)","v":{"$error":"#DIV/0!"}}]
["Ноябрь","ДВН","ЦМБ № 5",0,0,0,{"$f":"Таблица1[[#This Row],[Оплачено случаев]]-Таблица1[[#This Row],[План ДВН, чел.]]","v":0},{"$f":"ROUND(Таблица1[[#This Row],[Оплачено случаев]]/Таблица1[[#This Row],[План ДВН, чел.]]*100,1)","v":{"$error":"#DIV/0!"}}]
["Ноябрь","ДВН","ЦМБ № 6",0,0,0,{"$f":"Таблица1[[#This Row],[Оплачено случаев]]-Таблица1[[#This Row],[План ДВН, чел.]]","v":0},{"$f":"ROUND(Таблица1[[#This Row],[Оплачено случаев]]/Таблица1[[#This Row],[План ДВН, чел.]]*100,1)","v":{"$error":"#DIV/0!"}}]
["Ноябрь","ДВН","КГБ № 5",0,0,0,{"$f":"Таблица1[[#This Row],[Оплачено случаев]]-Таблица1[[#This Row],[План ДВН, чел.]]","v":0},{"$f":"ROUND(Таблица1[[#This Row],[Оплачено случаев]]/Таблица1[[#This Row],[План ДВН, чел.]]*100,1)","v":{"$error":"#DIV/0!"}}]
["Ноябрь","ДВН","КГКБ № 4",0,0,0,{"$f":"Таблица1[[#This Row],[Оплачено случаев]]-Таблица1[[#This Row],[План ДВН, чел.]]","v":0},{"$f":"ROUND(Таблица1[[#This Row],[Оплачено случаев]]/Таблица1[[#This Row],[План ДВН, чел.]]*100,1)","v":{"$error":"#DIV/0!"}}]
["Ноябрь","ДВН","Городская поликлиника",0,0,0,{"$f":"Таблица1[[#This Row],[Оплачено случаев]]-Таблица1[[#This Row],[План ДВН, чел.]]","v":0},{"$f":"ROUND(Таблица1[[#This Row],[Оплачено случаев]]/Таблица1[[#This Row],[План ДВН, чел.]]*100,1)","v":{"$error":"#DIV/0!"}}]
["Ноябрь","ДВН","МСЧ № 1 г. Калуги",0,0,0,{"$f":"Таблица1[[#This Row],[Оплачено случаев]]-Таблица1[[#This Row],[План ДВН, чел.]]","v":0},{"$f":"ROUND(Таблица1[[#This Row],[Оплачено случаев]]/Таблица1[[#This Row],[План ДВН, чел.]]*100,1)","v":{"$error":"#DIV/0!"}}]
["Ноябрь","ДВН","МСЧ № 2 г. Калуги",0,0,0,{"$f":"Таблица1[[#This Row],[Оплачено случаев]]-Таблица1[[#This Row],[План ДВН, чел.]]","v":0},{"$f":"ROUND(Таблица1[[#This Row],[Оплачено случаев]]/Таблица1[[#This Row],[План ДВН, чел.]]*100,1)","v":{"$error":"#DIV/0!"}}]
["Ноябрь","ДВН","МСЧ МВД",0,0,0,{"$f":"Таблица1[[#This Row],[Оплачено случаев]]-Таблица1[[#This Row],[План ДВН, чел.]]","v":0},{"$f":"ROUND(Таблица1[[#This Row],[Оплачено случаев]]/Таблица1[[#This Row],[План ДВН, чел.]]*100,1)","v":{"$error":"#DIV/0!"}}]
["Ноябрь","ДВН","ЧУЗ \"Больница \"РЖД - Медицина\" ",0,0,0,{"$f":"Таблица1[[#This Row],[Оплачено случаев]]-Таблица1[[#This Row],[План ДВН, чел.]]","v":0},{"$f":"ROUND(Таблица1[[#This Row],[Оплачено случаев]]/Таблица1[[#This Row],[План ДВН, чел.]]*100,1)","v":{"$error":"#DIV/0!"}}]
["Ноябрь","ДВН","КБ № 8 ФМБА",0,0,0,{"$f":"Таблица1[[#This Row],[Оплачено случаев]]-Таблица1[[#This Row],[План ДВН, чел.]]","v":0},{"$f":"ROUND(Таблица1[[#This Row],[Оплачено случаев]]/Таблица1[[#This Row],[План ДВН, чел.]]*100,1)","v":{"$error":"#DIV/0!"}}]
["Ноябрь","ДВН","ЦРБ Бабынинского района",0,0,0,{"$f":"Таблица1[[#This Row],[Оплачено случаев]]-Таблица1[[#This Row],[План ДВН, чел.]]","v":0},{"$f":"ROUND(Таблица1[[#This Row],[Оплачено случаев]]/Таблица1[[#This Row],[План ДВН, чел.]]*100,1)","v":{"$error":"#DIV/0!"}}]
["Ноябрь","ДВН","ЦРБ Боровского района",0,0,0,{"$f":"Таблица1[[#This Row],[Оплачено случаев]]-Таблица1[[#This Row],[План ДВН, чел.]]","v":0},{"$f":"ROUND(Таблица1[[#This Row],[Оплачено случаев]]/Таблица1[[#This Row],[План ДВН, чел.]]*100,1)","v":{"$error":"#DIV/0!"}}]
["Ноябрь","ДВН","ЦРБ Жуковского района",0,0,0,{"$f":"Таблица1[[#This Row],[Оплачено случаев]]-Таблица1[[#This Row],[План ДВН, чел.]]","v":0},{"$f":"ROUND(Таблица1[[#This Row],[Оплачено случаев]]/Таблица1[[#This Row],[План ДВН, чел.]]*100,1)","v":{"$error":"#DIV/0!"}}]
["Ноябрь","ДВН","ГП \"Город Кременки\"",0,0,0,{"$f":"Таблица1[[#This Row],[Оплачено случаев]]-Таблица1[[#This Row],[План ДВН, чел.]]","v":0},{"$f":"ROUND(Таблица1[[#This Row],[Оплачено случаев]]/Таблица1[[#This Row],[План ДВН, чел.]]*100,1)","v":{"$error":"#DIV/0!"}}]
["Ноябрь","ДВН","ЦРБ Малоярославецкого района",0,0,0,{"$f":"Таблица1[[#This Row],[Оплачено случаев]]-Таблица1[[#This Row],[План ДВН, чел.]]","v":0},{"$f":"ROUND(Таблица1[[#This Row],[Оплачено случаев]]/Таблица1[[#This Row],[План ДВН, чел.]]*100,1)","v":{"$error":"#DIV/0!"}}]
["Ноябрь","ДВН","ЦРБ  Тарусского района",0,0,0,{"$f":"Таблица1[[#This Row],[Оплачено случаев]]-Таблица1[[#This Row],[План ДВН, чел.]]","v":0},{"$f":"ROUND(Таблица1[[#This Row],[Оплачено случаев]]/Таблица1[[#This Row],[План ДВН, чел.]]*100,1)","v":{"$error":"#DIV/0!"}}]
["Декабрь","ДВН","ЦМБ № 1",{"$f":"BM4","v":0},{"$f":"BN4","v":0},{"$f":"BO4","v":0},{"$f":"Таблица1[[#This Row],[Оплачено случаев]]-Таблица1[[#This Row],[План ДВН, чел.]]","v":0},{"$f":"ROUND(Таблица1[[#This Row],[Оплачено случаев]]/Таблица1[[#This Row],[План ДВН, чел.]]*100,1)","v":{"$error":"#DIV/0!"}}]
["Декабрь","ДВН","ЦМБ № 2",0,0,0,{"$f":"Таблица1[[#This Row],[Оплачено случаев]]-Таблица1[[#This Row],[План ДВН, чел.]]","v":0},{"$f":"ROUND(Таблица1[[#This Row],[Оплачено случаев]]/Таблица1[[#This Row],[План ДВН, чел.]]*100,1)","v":{"$error":"#DIV/0!"}}]
["Декабрь","ДВН","ЦМБ № 3",0,0,0,{"$f":"Таблица1[[#This Row],[Оплачено случаев]]-Таблица1[[#This Row],[План ДВН, чел.]]","v":0},{"$f":"ROUND(Таблица1[[#This Row],[Оплачено случаев]]/Таблица1[[#This Row],[План ДВН, чел.]]*100,1)","v":{"$error":"#DIV/0!"}}]
["Декабрь","ДВН","ЦМБ № 4",0,0,0,{"$f":"Таблица1[[#This Row],[Оплачено случаев]]-Таблица1[[#This Row],[План ДВН, чел.]]","v":0},{"$f":"ROUND(Таблица1[[#This Row],[Оплачено случаев]]/Таблица1[[#This Row],[План ДВН, чел.]]*100,1)","v":{"$error":"#DIV/0!"}}]
["Декабрь","ДВН","ЦМБ № 5",0,0,0,{"$f":"Таблица1[[#This Row],[Оплачено случаев]]-Таблица1[[#This Row],[План ДВН, чел.]]","v":0},{"$f":"ROUND(Таблица1[[#This Row],[Оплачено случаев]]/Таблица1[[#This Row],[План ДВН, чел.]]*100,1)","v":{"$error":"#DIV/0!"}}]
["Декабрь","ДВН","ЦМБ № 6",0,0,0,{"$f":"Таблица1[[#This Row],[Оплачено случаев]]-Таблица1[[#This Row],[План ДВН, чел.]]","v":0},{"$f":"ROUND(Таблица1[[#This Row],[Оплачено случаев]]/Таблица1[[#This Row],[План ДВН, чел.]]*100,1)","v":{"$error":"#DIV/0!"}}]
["Декабрь","ДВН","КГБ № 5",0,0,0,{"$f":"Таблица1[[#This Row],[Оплачено случаев]]-Таблица1[[#This Row],[План ДВН, чел.]]","v":0},{"$f":"ROUND(Таблица1[[#This Row],[Оплачено случаев]]/Таблица1[[#This Row],[План ДВН, чел.]]*100,1)","v":{"$error":"#DIV/0!"}}]
["Декабрь","ДВН","КГКБ № 4",0,0,0,{"$f":"Таблица1[[#This Row],[Оплачено случаев]]-Таблица1[[#This Row],[План ДВН, чел.]]","v":0},{"$f":"ROUND(Таблица1[[#This Row],[Оплачено случаев]]/Таблица1[[#This Row],[План ДВН, чел.]]*100,1)","v":{"$error":"#DIV/0!"}}]
["Декабрь","ДВН","Городская поликлиника",0,0,0,{"$f":"Таблица1[[#This Row],[Оплачено случаев]]-Таблица1[[#This Row],[План ДВН, чел.]]","v":0},{"$f":"ROUND(Таблица1[[#This Row],[Оплачено случаев]]/Таблица1[[#This Row],[План ДВН, чел.]]*100,1)","v":{"$error":"#DIV/0!"}}]
["Декабрь","ДВН","МСЧ № 1 г. Калуги",0,0,0,{"$f":"Таблица1[[#This Row],[Оплачено случаев]]-Таблица1[[#This Row],[План ДВН, чел.]]","v":0},{"$f":"ROUND(Таблица1[[#This Row],[Оплачено случаев]]/Таблица1[[#This Row],[План ДВН, чел.]]*100,1)","v":{"$error":"#DIV/0!"}}]
["Декабрь","ДВН","МСЧ № 2 г. Калуги",0,0,0,{"$f":"Таблица1[[#This Row],[Оплачено случаев]]-Таблица1[[#This Row],[План ДВН, чел.]]","v":0},{"$f":"ROUND(Таблица1[[#This Row],[Оплачено случаев]]/Таблица1[[#This Row],[План ДВН, чел.]]*100,1)","v":{"$error":"#DIV/0!"}}]
["Декабрь","ДВН","МСЧ МВД",0,0,0,{"$f":"Таблица1[[#This Row],[Оплачено случаев]]-Таблица1[[#This Row],[План ДВН, чел.]]","v":0},{"$f":"ROUND(Таблица1[[#This Row],[Оплачено случаев]]/Таблица1[[#This Row],[План ДВН, чел.]]*100,1)","v":{"$error":"#DIV/0!"}}]
["Декабрь","ДВН","ЧУЗ \"Больница \"РЖД - Медицина\" ",0,0,0,{"$f":"Таблица1[[#This Row],[Оплачено случаев]]-Таблица1[[#This Row],[План ДВН, чел.]]","v":0},{"$f":"ROUND(Таблица1[[#This Row],[Оплачено случаев]]/Таблица1[[#This Row],[План ДВН, чел.]]*100,1)","v":{"$error":"#DIV/0!"}}]
["Декабрь","ДВН","КБ № 8 ФМБА",0,0,0,{"$f":"Таблица1[[#This Row],[Оплачено случаев]]-Таблица1[[#This Row],[План ДВН, чел.]]","v":0},{"$f":"ROUND(Таблица1[[#This Row],[Оплачено случаев]]/Таблица1[[#This Row],[План ДВН, чел.]]*100,1)","v":{"$error":"#DIV/0!"}}]
["Декабрь","ДВН","ЦРБ Бабынинского района",0,0,0,{"$f":"Таблица1[[#This Row],[Оплачено случаев]]-Таблица1[[#This Row],[План ДВН, чел.]]","v":0},{"$f":"ROUND(Таблица1[[#This Row],[Оплачено случаев]]/Таблица1[[#This Row],[План ДВН, чел.]]*100,1)","v":{"$error":"#DIV/0!"}}]
["Декабрь","ДВН","ЦРБ Боровского района",0,0,0,{"$f":"Таблица1[[#This Row],[Оплачено случаев]]-Таблица1[[#This Row],[План ДВН, чел.]]","v":0},{"$f":"ROUND(Таблица1[[#This Row],[Оплачено случаев]]/Таблица1[[#This Row],[План ДВН, чел.]]*100,1)","v":{"$error":"#DIV/0!"}}]
["Декабрь","ДВН","ЦРБ Жуковского района",0,0,0,{"$f":"Таблица1[[#This Row],[Оплачено случаев]]-Таблица1[[#This Row],[План ДВН, чел.]]","v":0},{"$f":"ROUND(Таблица1[[#This Row],[Оплачено случаев]]/Таблица1[[#This Row],[План ДВН, чел.]]*100,1)","v":{"$error":"#DIV/0!"}}]
["Декабрь","ДВН","ГП \"Город Кременки\"",0,0,0,{"$f":"Таблица1[[#This Row],[Оплачено случаев]]-Таблица1[[#This Row],[План ДВН, чел.]]","v":0},{"$f":"ROUND(Таблица1[[#This Row],[Оплачено случаев]]/Таблица1[[#This Row],[План ДВН, чел.]]*100,1)","v":{"$error":"#DIV/0!"}}]
["Декабрь","ДВН","ЦРБ Малоярославецкого района",0,0,0,{"$f":"Таблица1[[#This Row],[Оплачено случаев]]-Таблица1[[#This Row],[План ДВН, чел.]]","v":0},{"$f":"ROUND(Таблица1[[#This Row],[Оплачено случаев]]/Таблица1[[#This Row],[План ДВН, чел.]]*100,1)","v":{"$error":"#DIV/0!"}}]
["Декабрь","ДВН","ЦРБ  Тарусского района",0,0,0,{"$f":"Таблица1[[#This Row],[Оплачено случаев]]-Таблица1[[#This Row],[План ДВН, чел.]]","v":0},{"$f":"ROUND(Таблица1[[#This Row],[Оплачено случаев]]/Таблица1[[#This Row],[План ДВН, чел.]]*100,1)","v":{"$error":"#DIV/0!"}}]

{"sheet":"Все МО","index":1,"n_rows":24,"n_cols":3,"rows_kept":24,"cut":false,"hidden":true,"merged":[]}
["Месяц","Март"]
[]
["Названия строк","Оплачено случаев ","План ДВН, чел. "]
["МСЧ № 2 г. Калуги",0,44]
["ЦМБ № 4",0,352]
["МСЧ МВД",0,0]
["ГП \"Город Кременки\"",0,188]
["ЦМБ № 2",8,1331]
["ЦРБ  Тарусского района",8,606]
["ЧУЗ \"Больница \"РЖД - Медицина\" ",13,82]
["ЦМБ № 3",16,791]
["ЦРБ Жуковского района",23,978]
["МСЧ № 1 г. Калуги",36,90]
["ЦМБ № 6",119,1267]
["ЦМБ № 1",166,1256]
["ЦМБ № 5",167,1064]
["ЦРБ Бабынинского района",169,663]
["ЦРБ Боровского района",189,1227]
["КБ № 8 ФМБА",204,491]
["ЦРБ Малоярославецкого района",497,1269]
["Городская поликлиника",505,1411]
["КГБ № 5",1590,2823]
["КГКБ № 4",1975,2532]
["Общий итог",5685,18465]

{"sheet":"10 лучших","index":2,"n_rows":14,"n_cols":2,"rows_kept":14,"cut":false,"hidden":true,"merged":[]}
["Месяц","Март"]
[]
["Названия строк","% выполнения "]
["ЦРБ Боровского района",15.4]
["ЦМБ № 5",15.7]
["ЧУЗ \"Больница \"РЖД - Медицина\" ",15.9]
["ЦРБ Бабынинского района",25.5]
["Городская поликлиника",35.799999999999997]
["ЦРБ Малоярославецкого района",39.200000000000003]
["МСЧ № 1 г. Калуги",40]
["КБ № 8 ФМБА",41.5]
["КГБ № 5",56.3]
["КГКБ № 4",78]
["Общий итог",36.33]

{"sheet":"10 худших","index":3,"n_rows":14,"n_cols":2,"rows_kept":14,"cut":false,"hidden":true,"merged":[]}
["Месяц","Март"]
[]
["Названия строк","% выполнения "]
["МСЧ № 2 г. Калуги",0]
["ЦМБ № 4",0]
["ГП \"Город Кременки\"",0]
["ЦМБ № 2",0.6]
["ЦРБ  Тарусского района",1.3]
["ЦМБ № 3",2]
["ЦРБ Жуковского района",2.4]
["ЦМБ № 6",9.4]
["ЦМБ № 1",13.2]
["ЦРБ Боровского района",15.4]
["Общий итог",4.43]

{"sheet":"Помесячно по МО","index":4,"n_rows":16,"n_cols":4,"rows_kept":16,"cut":false,"hidden":true,"merged":[]}
["Выполнение ДВН"]
[]
["Названия строк","Оплачено случаев ","План ДВН, чел. ","Отклонение "]
["Январь",0,1411,-1411]
["Февраль",578,1411,-833]
["Март",505,1411,-906]
["Апрель",0,0,0]
["Май",0,0,0]
["Июнь",0,0,0]
["Июль",0,0,0]
["Август",0,0,0]
["Сентябрь",0,0,0]
["Октябрь",0,0,0]
["Ноябрь",0,0,0]
["Декабрь",0,0,0]
["Общий итог",1083,4233,-3150]

{"sheet":"Дашборд ДВН","index":5,"n_rows":2,"n_cols":1,"rows_kept":2,"cut":false,"hidden":false,"merged":[[1,0,1,24]]}
[]
["ДИСПАНСЕРНОЕ НАБЛЮДЕНИЕ ВЗРОСЛОГО НАСЕЛЕНИЯ В 2023 ГОДУ"]